Workbook

Sheet Draft Decision changes
A1: Cells | B1: Decription of changes
A2: 'Cost Escalations' - row 3 | B2: Updated actual CPI in cells E3:F3 and forecast CPI in cell G3.
A3: 'Cost Escalations' - row 29 | B3: Substituted with our labour escalators consistent with ANS.

Sheet RRP changes
A1: Cells | B1: Decription of changes
A2: 'Cost Escalations' - row 29 | B2: Substituted with our labour escalators consistent with ANS.
A3: ERG - Yearly volume scenario' - columns H, I, & J | B3: Updated for actual (2022-23 & 2023-24) and revised forecast volumes

Sheet Cover page
A2: Ergon Energy Public Lighting Capex and Opex Forecasting Model
A3: 2025-30

Sheet Version Control
A1: RDP2025 Project: Public Lighting Expenditure Analysis Model
B4: Date | C4: Version | D4: Description of any updates made
B5: 2024-01-31 | C5: V1 | D5: Version submitted to the AER
B6: 2024-08-21 | C6: V2 | D6: AER - updated inflation figures and labour escalators
B7: 2024-11-26 | C7: V3 | D7: ERG - updated actual volumes (2022-23 & 2023-24) and revised forecast

Sheet Intro
A1: Model developer | B1: Energex & Ergon Energy Network
A5: Purpose | B5: To provide capex and opex scenarios based on the 100% LED deployment during 2025-30 regulatory period.
A7: Colour chart | B7: Data | C7: Cells containing hard coded data
C8: Cell containing formula
C9: Cells to remain empty (non-applicable input/output)
B10: Assumptions | C10: Cells containing assumptions intended to be manipulated by model users
B11: Text | C11: Important notes providing details
C12: Cell highlighting particular attention
B13: Header 1 | C13: Fist header
B14: Header 2 | C14: Second header
B15: Header 3 | C15: Third hearder

Sheet >>General inputs

Sheet Cost Escalations
B1: 2019-20 | C1: 2020-21 | D1: 2021-22 | E1: 2022-23 | F1: 2023-24 | G1: 2024-25
B2: 2020-06-01 | C2: 2021-06-01 | D2: 2022-06-01 | E2: 2023-06-01 | F2: 2024-06-01 | G2: 2025-06-01
A3: Inflation | B3: -0.003484320557 | C3: 0.03846153846 | D3: 0.06144781145 | E3: 0.06 | F3: 0.038 | G3: 0.028 | J3: Sources used | L3: https://www.rba.gov.au/publications/smp/2024/aug/
L4: https://www.abs.gov.au/statistics/economy/price-indexes-and-inflation/consumer-price-index-australia/jun-quarter-2024
A5: Real to Real
B6: 2020-06-01 | C6: 2021-06-01 | D6: 2022-06-01 | E6: 2023-06-01 | F6: 2024-06-01 | G6: 2025-06-01
A7: 2020-06-01 | B7: =IF(AND($A7>B$6,ISNONTEXT($A7)),C7/(1+C$3),IF(AND($A7=B$6,B$6=B$2),1,IF(AND($A7<B$6,B$6=B$2),#REF!*(1+B$3),0))) -> 1 | C7: =IF(AND($A7>C$6,ISNONTEXT($A7)),D7/(1+D$3),IF(AND($A7=C$6,C$6=C$2),1,IF(AND($A7<C$6,C$6=C$2),B7*(1+C$3),0))) -> 1.038461538 | D7: 1.102272727 | E7: 1.168409091 | F7: 1.212808636 | G7: =IF(AND($A7>G$6,ISNONTEXT($A7)),#REF!/(1+#REF!),IF(AND($A7=G$6,G$6=G$2),1,IF(AND($A7<G$6,G$6=G$2),F7*(1+G$3),0))) -> 1.246767278
A8: 2021-06-01 | B8: =IF(AND($A8>B$6,ISNONTEXT($A8)),C8/(1+C$3),IF(AND($A8=B$6,B$6=B$2),1,IF(AND($A8<B$6,B$6=B$2),#REF!*(1+B$3),0))) -> 0.962962963 | C8: 1 | D8: 1.061447811 | E8: 1.12513468 | F8: 1.167889798 | G8: =IF(AND($A8>G$6,ISNONTEXT($A8)),#REF!/(1+#REF!),IF(AND($A8=G$6,G$6=G$2),1,IF(AND($A8<G$6,G$6=G$2),F8*(1+G$3),0))) -> 1.200590712
A9: 2022-06-01 | B9: =IF(AND($A9>B$6,ISNONTEXT($A9)),C9/(1+C$3),IF(AND($A9=B$6,B$6=B$2),1,IF(AND($A9<B$6,B$6=B$2),#REF!*(1+B$3),0))) -> 0.9072164948 | C9: 0.942109437 | D9: 1 | E9: 1.06 | F9: =IF(AND($A9>F$6,ISNONTEXT($A9)),G9/(1+G$3),IF(AND($A9=F$6,F$6=F$2),1,IF(AND($A9<F$6,F$6=F$2),E9*(1+F$3),0))) -> 1.10028 | G9: =IF(AND($A9>G$6,ISNONTEXT($A9)),#REF!/(1+#REF!),IF(AND($A9=G$6,G$6=G$2),1,IF(AND($A9<G$6,G$6=G$2),F9*(1+G$3),0))) -> 1.13108784
A10: 2023-06-01 | B10: =IF(AND($A10>B$6,ISNONTEXT($A10)),C10/(1+C$3),IF(AND($A10=B$6,B$6=B$2),1,IF(AND($A10<B$6,B$6=B$2),#REF!*(1+B$3),0))) -> 0.8558646178 | C10: 0.8887824877 | D10: 0.9433962264 | E10: 1 | F10: 1.038 | G10: =IF(AND($A10>G$6,ISNONTEXT($A10)),#REF!/(1+#REF!),IF(AND($A10=G$6,G$6=G$2),1,IF(AND($A10<G$6,G$6=G$2),F10*(1+G$3),0))) -> 1.067064
A11: 2024-06-01 | B11: =IF(AND($A11>B$6,ISNONTEXT($A11)),C11/(1+C$3),IF(AND($A11=B$6,B$6=B$2),1,IF(AND($A11<B$6,B$6=B$2),#REF!*(1+B$3),0))) -> 0.8245323871 | C11: 0.8562451712 | D11: 0.908859563 | E11: 0.9633911368 | F11: 1 | G11: =IF(AND($A11>G$6,ISNONTEXT($A11)),#REF!/(1+#REF!),IF(AND($A11=G$6,G$6=G$2),1,IF(AND($A11<G$6,G$6=G$2),F11*(1+G$3),0))) -> 1.028
A12: 2025-06-01 | B12: =IF(AND($A12>B$6,ISNONTEXT($A12)),C12/(1+C$3),IF(AND($A12=B$6,B$6=B$2),1,IF(AND($A12<B$6,B$6=B$2),#REF!*(1+B$3),0))) -> 0.8020743065 | C12: 0.8329233183 | D12: 0.8841046333 | E12: 0.9371509113 | F12: 0.9727626459 | G12: =IF(AND($A12>G$6,ISNONTEXT($A12)),#REF!/(1+#REF!),IF(AND($A12=G$6,G$6=G$2),1,IF(AND($A12<G$6,G$6=G$2),F12*(1+G$3),0))) -> 1
A14: Nominal to Real
B15: 2020-06-01 | C15: 2021-06-01 | D15: 2022-06-01 | E15: 2023-06-01 | F15: 2024-06-01 | G15: 2025-06-01
A16: 2020-06-01 | B16: =IF(AND(B$15=B$2,ISNONTEXT($A16)),1/B7*(1+B$3)^0.5,0) -> 0.9982563195 | C16: =IF(AND(C$15=C$2,ISNONTEXT($A16)),1/C7*(1+C$3)^0.5,0) -> 0.9813067629 | D16: =IF(AND(D$15=D$2,ISNONTEXT($A16)),1/D7*(1+D$3)^0.5,0) -> 0.9346742127 | E16: 0.8811665555 | F16: 0.8400524366 | G16: 0.8132258251
A17: 2021-06-01 | B17: =IF(AND(B$15=B$2,ISNONTEXT($A17)),1/B8*(1+B$3)^0.5,0) -> 1.036650793 | C17: 1.019049331 | D17: 0.9706232209 | E17: 0.9150575769 | F17: 0.8723621457 | G17: 0.8445037414
A18: 2022-06-01 | B18: 1.100350716 | C18: 1.081667682 | D18: 1.030265894 | E18: 0.9712858624 | F18: 0.9259668904 | G18: 0.8963966481
A19: 2023-06-01 | B19: 1.166371759 | C19: 1.146567743 | D19: 1.092081847 | E19: 1.029563014 | F19: 0.9815249038 | G19: 0.950180447
A20: 2024-06-01 | B20: 1.210693886 | C20: 1.190137317 | D20: 1.133580957 | E20: 1.068686409 | F20: 1.01882285 | G20: 0.9862873039
A21: 2025-06-01 | B21: 1.244593314 | C21: 1.223461162 | D21: 1.165321224 | E21: 1.098609628 | F21: 1.04734989 | G21: 1.013903348
A23: Real escalation
A24: Contractor | B24: 2025-26 | C24: 2026-27 | D24: 2027-28 | E24: 2028-29 | F24: 2029-30
A25: Escalation - Year on Year | B25: 0.0105 | C25: 0.0071 | D25: 0.0061 | E25: 0.0092 | F25: 0.0109 | G25: Source: BISOE report
A26: Escalation - Cumulative | B26: =PRODUCT(1+$B25:B25)-1 -> 0.0105 | C26: =PRODUCT(1+$B25:C25)-1 -> 0.01767455 | D26: =PRODUCT(1+$B25:D25)-1 -> 0.02388236475 | E26: =PRODUCT(1+$B25:E25)-1 -> 0.03330208251 | F26: =PRODUCT(1+$B25:F25)-1 -> 0.04456507521
A28: Labour | B28: 2025-26 | C28: 2026-27 | D28: 2027-28 | E28: 2028-29 | F28: 2029-30
A29: Escalation - Year on Year | B29: 0.01125051557 | C29: 0.009213524394 | D29: 0.009108355629 | E29: 0.0107779358 | F29: 0.01234018808 | G29: Source: BISOE report | J29: Source used | L29: Average of BISOE and Deloitte X factors (see ANS model)
A30: Escalation - Cumulative | B30: =PRODUCT(1+$B29:B29)-1 -> 0.01125051557 | C30: =PRODUCT(1+$B29:C29)-1 -> 0.02056769686 | D30: =PRODUCT(1+$B29:D29)-1 -> 0.02986339039 | E30: =PRODUCT(1+$B29:E29)-1 -> 0.04096319189 | F30: =PRODUCT(1+$B29:F29)-1 -> 0.05380887347

Sheet Ratios & Assumptions
A1: Table 1 - ERG ratios between major and minor roads
C2: 2025-26
A3: DNSP | B3: Road type | C3: Volume | D3: Ratio
A4: Ergon | B4: Major | C4: =SUMIF('ERG - Yearly volume scenarios'!$C$5:$C$12,'Ratios & Assumptions'!$B4,'ERG - Yearly volume scenarios'!$G$5:$G$12) -> 42421 | D4: =C4/$C$6 -> 0.2825166163
A5: Ergon | B5: Minor | C5: =SUMIF('ERG - Yearly volume scenarios'!$C$5:$C$12,'Ratios & Assumptions'!$B5,'ERG - Yearly volume scenarios'!$G$5:$G$12) -> 107733 | D5: =C5/$C$6 -> 0.7174833837
A6: Ergon | B6: All | C6: =SUM(C4:C5) -> 150154 | D6: =SUM(D4:D5) -> 1
A7: Notes:
A8: Allocation based on actual 2021-22 volumes
A9: Used to allocate expenditure between major and minor road types where the breakdown is not available
A11: Table 2 - ERG estimated annual growth rates
A12: DNSP | B12: Road | C12: Rate | D12: Rate
A13: Ergon | B13: All | C13: 1 | D13: 0.025
A14: Ergon | B14: All | C14: 2 | D14: 0.015
A15: Note:
A16: Different growth rates for Rate 1 and Rate 2
A19: Table 3 - Estimated proportion of contributed Rate 2 LEDs
A20: DNSP | B20: Road | C20: Rate
A21: Ergon | B21: Major | C21: 0.06084498661
A22: Ergon | B22: Minor | C22: 0.04078588116
A23: Note:
A24: Based on EGX's figures due to data availability issues for Ergon

Sheet Overheads
A1: Table 1 - ERG Labour Oncosts
A2: DNSP | B2: Cost type | C2: Cost recovery | D2: FY2023
A3: Ergon | B3: Labour Oncosts | C3: Labour only | D3: 0
A4: Ergon | B4: All | C4: All | D4: =SUM(D3) -> 0
A6: Table 2 - ERG Material Oncosts
A7: DNSP | B7: Cost type | C7: Cost recovery | D7: FY2023
A8: Ergon | B8: Material Oncosts | C8: Material only | D8: 0.079587701
A9: Ergon | B9: All | C9: All | D9: =SUM(D8) -> 0.079587701
A11: Table 3 - ERG Fleet Oncosts
A12: DNSP | B12: Cost type | C12: Cost recovery | D12: FY2023
A13: Ergon | B13: Fleet Oncost Indirects | C13: Labour only | D13: 0.1266957608
A14: Ergon | B14: Fleet Oncost Depreciation | C14: Labour only | D14: 0.08494458414
A15: Ergon | B15: All | C15: All | D15: =SUM(D13:D14) -> 0.2116403449
A17: Table 4 - ERG Network and Non-network Overheads
A18: DNSP | B18: Cost type | C18: Cost recovery | D18: FY2023
A19: Ergon | B19: Network Overhead | C19: All Direct costs + Oncosts | D19: 0.1154435121
A20: Ergon | B20: Non Network Overhead | C20: Labour only | D20: 0.3540204692
A21: Ergon | B21: All | C21: All | D21: =SUM(D19:D20) -> 0.4694639813
A23: Table 5 - ERG Other Allocations
A24: DNSP | B24: Cost type | C24: Cost recovery | D24: FY2023
A25: Ergon | B25: Non Network Depreciation | C25: Labour only | D25: 0.1378194158
A26: Ergon | B26: Corporate Overhead | C26: All Direct Costs + Oncosts | D26: 0.05378833159
A27: Ergon | B27: Market | C27: All Direct Costs + Oncosts | D27: 0.002830549019
A28: Ergon | B28: Customer Ops | C28: All Direct Costs + Oncosts | D28: 0.02858428769
A29: Ergon | B29: All | C29: All | D29: =SUM(D25:D28) -> 0.2230225841

Sheet >>Volumes

Sheet ERG - Yearly volume scenarios
A1: Table 1 - ERG Total public lighting asset base by tariffs to be converted from CONV to LED- yearly data as at 30 June | K1: 100% LED deployment by 2030
A2: 1.a - Number of public lights for LED conversion | E2: Previous period | F2: Current period | K2: Forthcoming period
E3: Actual | F3: Actual | G3: Actual | H3: Actual | I3: Actuals | J3: Forecast | K3: Forecast | L3: Forecast | M3: Forecast | N3: Forecast | O3: Forecast
A4: DNSP | B4: Rate | C4: Road type | D4: Light type | E4: 2019-20 | F4: 2020-21 | G4: 2021-22 | H4: 2022-23 | I4: 2023-24 | J4: 2024-25 | K4: 2025-26 | L4: 2026-27 | M4: 2027-28 | N4: 2028-29 | O4: 2029-30
A5: Ergon Energy | B5: 1 | C5: Major | D5: CONV | E5: 27931 | F5: 27894 | G5: 26945 | H5: 26195 | I5: 25747 | J5: 21456 | K5: 17165 | L5: 12874 | M5: 8582 | N5: 4291 | O5: 0
A6: Ergon Energy | B6: 1 | C6: Major | D6: LED | E6: 346 | F6: 754 | G6: 1837 | H6: 2626 | I6: 3277 | J6: 7568 | K6: 11859 | L6: 16150 | M6: 20442 | N6: 24733 | O6: 29024
A7: Ergon Energy | B7: 1 | C7: Minor | D7: CONV | E7: 68751 | F7: 68404 | G7: 53974 | H7: 30065 | I7: 16683 | J7: 13903 | K7: 11122 | L7: 8342 | M7: 5561 | N7: 2781 | O7: 0 | P7: Removes the Nostalgia as these are to be converted to LED (see Table 3 below)
A8: Ergon Energy | B8: 1 | C8: Minor | D8: LED | E8: 1287 | F8: 1714 | G8: 17369 | H8: 41990 | I8: 56894 | J8: 59674 | K8: 62455 | L8: 65235 | M8: 68016 | N8: 70796 | O8: 73577
A9: Ergon Energy | B9: 2 | C9: Major | D9: CONV | E9: 12886 | F9: 12883 | G9: 12715 | H9: 12494 | I9: 12293 | J9: 10244 | K9: 8195 | L9: 6147 | M9: 4098 | N9: 2049 | O9: 0
A10: Ergon Energy | B10: 2A | C10: Major | D10: LED | E10: 255 | F10: 558 | G10: 924 | H10: 1483 | I10: 2217 | J10: 4266 | K10: 6315 | L10: 8363 | M10: 10412 | N10: 12461 | O10: 14510
A11: Ergon Energy | B11: 2 | C11: Minor | D11: CONV | E11: 34331 | F11: 34480 | G11: 29753 | H11: 21261 | I11: 15755 | J11: 13129 | K11: 10503 | L11: 7878 | M11: 5252 | N11: 2626 | O11: 0 | P11: Removes the Nostalgia as these are to be converted to LED (see Table 3 below)
A12: Ergon Energy | B12: 2A | C12: Minor | D12: LED | E12: 686 | F12: 1302 | G12: 6637 | H12: 16154 | I12: 21842 | J12: 24468 | K12: 27094 | L12: 29719 | M12: 32345 | N12: 34971 | O12: 37597
A13: Ergon Energy | B13: All | C13: All | D13: CONV | E13: =E5+E7+E9+E11 -> 143899 | F13: 143661 | G13: 123387 | H13: 90015 | I13: 70478 | J13: 58732 | K13: 46985 | L13: 35241 | M13: 23493 | N13: 11747 | O13: 0
A14: Ergon Energy | B14: All | C14: All | D14: LED | E14: =E6+E8+E10+E12 -> 2574 | F14: =F6+F8+F10+F12 -> 4328 | G14: 26767 | H14: 62253 | I14: 84230 | J14: 95976 | K14: 107723 | L14: 119467 | M14: 131215 | N14: 142961 | O14: 154708
A15: Ergon Energy | B15: All | C15: All | D15: All | E15: =E13+E14 -> 146473 | F15: =F13+F14 -> 147989 | G15: 150154 | H15: 152268 | I15: 154708 | J15: 154708 | K15: =SUM(K5:K12) -> 154708 | L15: =SUM(L5:L12) -> 154708 | M15: =SUM(M5:M12) -> 154708 | N15: =SUM(N5:N12) -> 154708 | O15: =SUM(O5:O12) -> 154708
A16: Ergon Energy | B16: All | C16: All | D16: LED | E16: =E14/E15 -> 0.01757320462 | F16: =F14/F15 -> 0.02924541689 | G16: 0.1782636493 | H16: 0.4088383639 | I16: 0.544445019 | J16: 0.6203686946 | K16: 0.6962988339 | L16: 0.7722095819 | M16: 0.8481461851 | N16: 0.9240698606 | O16: =O14/O15 -> 1
A17: Note:
A18: CONV Minor volumes exclude Nostalgia volumes which are being converted to LED (see volumes in Table 4)
A19: No growth assumed for CONV to LED conversion program as the conversions are intended for the existing fleet of assets
A20: All Rate 1 CONV lights converted to LED will be assigned to Rate 1 LED
A21: All Rate 2 CONV lights converted to LED and funded by ERG, will be assigned to Rate 2A
K23: 100% LED deployment by 2030
E24: Previous period | F24: Current period | K24: Forthcoming period
A25: Table 1.b - ERG LED luminaire replacement volume/year | E25: Actual | F25: Actual | G25: Actual | H25: Actual | I25: Forecast | J25: Forecast | K25: Forecast | L25: Forecast | M25: Forecast | N25: Forecast | O25: Forecast
A26: DNSP | B26: Rate | C26: Road type | D26: Light type | E26: 2019-20 | F26: 2020-21 | G26: 2021-22 | H26: 2022-23 | I26: 2023-24 | J26: 2024-25 | K26: 2025-26 | L26: 2026-27 | M26: 2027-28 | N26: 2028-29 | O26: 2029-30
A27: Ergon Energy | B27: 1 | C27: Major | D27: LED | F27: =F6-E6 -> 408 | G27: 1083 | H27: 789 | I27: 651 | J27: 4291 | K27: 4291 | L27: 4291 | M27: 4292 | N27: 4291 | O27: 4291
A28: Ergon Energy | B28: 1 | C28: Minor | D28: LED | F28: =F8-E8 -> 427 | G28: 15655 | H28: 24621 | I28: 14904 | J28: 2780 | K28: 2781 | L28: 2780 | M28: 2781 | N28: 2780 | O28: 2781
A29: Ergon Energy | B29: 2A | C29: Major | D29: LED | F29: =F10-E10 -> 303 | G29: 366 | H29: 559 | I29: 734 | J29: 2049 | K29: 2049 | L29: 2048 | M29: 2049 | N29: 2049 | O29: 2049
A30: Ergon Energy | B30: 2A | C30: Minor | D30: LED | F30: =F12-E12 -> 616 | G30: 5335 | H30: 9517 | I30: 5688 | J30: 2626 | K30: 2626 | L30: 2625 | M30: 2626 | N30: 2626 | O30: 2626
A31: Ergon Energy | B31: All | C31: All | D31: LED | F31: =SUM(F27:F30) -> 1754 | G31: 22439 | H31: 35486 | I31: 21977 | J31: 11746 | K31: 11747 | L31: 11744 | M31: 11748 | N31: 11746 | O31: 11747
D32: Total LED volume | K32: =J14+K31 -> 107723 | L32: =K14+L31 -> 119467 | M32: =L14+M31 -> 131215 | N32: =M14+N31 -> 142961 | O32: =N14+O31 -> 154708
J33: Check | K33: =K32-K14 -> 0 | L33: =L32-L14 -> 0 | M33: =M32-M14 -> 0 | N33: =N32-N14 -> 0 | O33: =O32-O14 -> 0
C34: Proportions | D34: LED | E34: Rate 1 | F34: =SUM(F27:F28)/SUM(F27:F30) -> 0.476054732 | G34: 0.7459334195 | H34: 0.7160570366 | I34: 0.707785412 | J34: 0.6019921675 | K34: =SUM(K27:K28)/SUM(K27:K30) -> 0.6020260492 | L34: 0.6020946866 | M34: 0.6020599251 | N34: 0.6019921675 | O34: 0.6020260492
E35: Rate2A | F35: =1-F34 -> 0.523945268 | G35: 0.2540665805 | H35: 0.2839429634 | I35: 0.292214588 | J35: 0.3980078325 | K35: =1-K34 -> 0.3979739508 | L35: 0.3979053134 | M35: =1-M34 -> 0.3979400749 | N35: =1-N34 -> 0.3980078325 | O35: =1-O34 -> 0.3979739508
K37: 100% LED deployment by 2030
K38: Forthcoming period
A39: Table 1.c - ERG smoothed LED luminaire replacement volume/year | K39: Forecast | L39: Forecast | M39: Forecast | N39: Forecast | O39: Forecast
A40: DNSP | B40: Rate | C40: Road type | D40: Light type | K40: 2025-26 | L40: 2026-27 | M40: 2027-28 | N40: 2028-29 | O40: 2029-30
A41: Ergon Energy | B41: 1 | C41: Major | D41: LED | K41: =ROUND(SUM($K27:$O27)/5,0) -> 4291 | L41: 4291 | M41: 4291 | N41: 4291 | O41: 4291
A42: Ergon Energy | B42: 1 | C42: Minor | D42: LED | K42: 2781 | L42: 2781 | M42: 2781 | N42: 2781 | O42: 2781
A43: Ergon Energy | B43: 2A | C43: Major | D43: LED | K43: 2049 | L43: 2049 | M43: 2049 | N43: 2049 | O43: 2049
A44: Ergon Energy | B44: 2A | C44: Minor | D44: LED | K44: 2626 | L44: 2626 | M44: 2626 | N44: 2626 | O44: 2626
A45: Ergon Energy | B45: All | C45: All | D45: LED | K45: =SUM(K41:K44) -> 11747 | L45: =SUM(L41:L44) -> 11747 | M45: =SUM(M41:M44) -> 11747 | N45: =SUM(N41:N44) -> 11747 | O45: =SUM(O41:O44) -> 11747
A46: Note:
A47: This table is based on Table 2 and smoothes the number of lights being converted a consistent yearly deployment
K50: 100% LED deployment by 2030
K51: Forthcoming period
A52: 2 - New intallations | E52: Actual | F52: Actual | G52: Actual | H52: Actual | I52: Actual | J52: Forecast | K52: Forecast | L52: Forecast | M52: Forecast | N52: Forecast | O52: Forecast
A53: DNSP | B53: Rate | C53: Road type | D53: Light type | E53: 2019-20 | F53: 2020-21 | G53: 2021-22 | H53: 2022-23 | I53: 2023-24 | J53: 2024-25 | K53: 2025-26 | L53: 2026-27 | M53: 2027-28 | N53: 2028-29 | O53: 2029-30
A54: Ergon Energy | B54: 1 | C54: Major | D54: LED | E54: 47.10785166 | F54: 31.9906864 | G54: 59.02817001 | H54: 256 | I54: 161 | J54: 88.2 | K54: =ROUND(J54*(1+'Ratios & Assumptions'!$D$13),0) -> 90 | L54: =ROUND(K54*(1+'Ratios & Assumptions'!$D$13),0) -> 92 | M54: =ROUND(L54*(1+'Ratios & Assumptions'!$D$13),0) -> 94 | N54: =ROUND(M54*(1+'Ratios & Assumptions'!$D$13),0) -> 96 | O54: =ROUND(N54*(1+'Ratios & Assumptions'!$D$13),0) -> 98
A55: Ergon Energy | B55: 1 | C55: Minor | D55: LED | E55: 113.3354909 | F55: 133.0851558 | G55: 116.5221267 | H55: 226 | I55: 1010 | J55: 279.4 | K55: =ROUND(J55*(1+'Ratios & Assumptions'!$D$14),0) -> 284 | L55: =ROUND(K55*(1+'Ratios & Assumptions'!$D$14),0) -> 288 | M55: =ROUND(L55*(1+'Ratios & Assumptions'!$D$14),0) -> 292 | N55: =ROUND(M55*(1+'Ratios & Assumptions'!$D$14),0) -> 296 | O55: =ROUND(N55*(1+'Ratios & Assumptions'!$D$14),0) -> 300
A56: Ergon Energy | B56: All | C56: All | D56: LED | E56: =SUM(E54:E55) -> 160.4433426 | F56: 165.0758422 | G56: 175.5502967 | H56: 482 | I56: 1171 | J56: 367.6 | K56: 374 | L56: 380 | M56: 386 | N56: 392 | O56: 398
A57: Notes:
A58: All new installations are assumed to be LEDs
A59: Actual figures (2019-20 to 2021-22) are sourced from the RIN
K60: 100% LED deployment by 2030
K61: Forthcoming period
A62: 3 - Conversion of Nostalgia lights from CONV to LED | E62: Actual | F62: Actual | G62: Actual | H62: Actual | I62: Actual | J62: Forecast | K62: Forecast | L62: Forecast | M62: Forecast | N62: Forecast | O62: Forecast
A63: DNSP | B63: Rate | C63: Road type | D63: Light type | E63: 2019-20 | F63: 2020-21 | G63: 2021-22 | H63: 2022-23 | I63: 2023-24 | J63: 2024-25 | K63: 2025-26 | L63: 2026-27 | M63: 2027-28 | N63: 2028-29 | O63: 2029-30
A64: Ergon Energy | B64: 1 | C64: Minor | D64: LED | K64: =ROUND(J64*(1+'Ratios & Assumptions'!$D$13),0) -> 0 | L64: =ROUND(K64*(1+'Ratios & Assumptions'!$D$13),0) -> 0 | M64: =ROUND(L64*(1+'Ratios & Assumptions'!$D$13),0) -> 0 | N64: =ROUND(M64*(1+'Ratios & Assumptions'!$D$13),0) -> 0 | O64: =ROUND(N64*(1+'Ratios & Assumptions'!$D$13),0) -> 0 | P64: No Rate 1 Nostalgia lights
B65: 2A | C65: Minor | D65: LED | K65: 1483 | L65: 1483 | M65: 1483 | N65: 1483 | O65: 1483
A66: Ergon Energy | B66: All | C66: Minor | D66: LED | K66: =SUM(K64:K65) -> 1483 | L66: 1483 | M66: 1483 | N66: 1483 | O66: 1483
A67: Notes: | J67: Sum | O67: =SUM(K66:O66) -> 7415
A68: Convert remaining 7,415 Nostalgia lamps to LEDs over the 2025-30 period
A69: Existing Rate 2 Nostalgia lights converted to LED and funded by Ergon. Once converted the assets are assigned to Rate 2A
A71: 4 - Total public lighting asset base (table 1.a, table 2 and table 3 combined) | K71: 100% LED deployment by 2030
K72: Forthcoming period
E73: Actual | F73: Actual | G73: Actual | H73: Actual | I73: Actual | J73: Forecast | K73: Forecast | L73: Forecast | M73: Forecast | N73: Forecast | O73: Forecast
A74: DNSP | B74: Rate | C74: Road type | D74: Light type | E74: 2019-20 | F74: 2020-21 | G74: 2021-22 | H74: 2022-23 | I74: 2023-24 | J74: 2024-25 | K74: 2025-26 | L74: 2026-27 | M74: 2027-28 | N74: 2028-29 | O74: 2029-30
A75: Ergon Energy | B75: 1 | C75: Major | D75: CONV | F75: =F5 -> 27894 | G75: 26945 | H75: 26195 | I75: 25747 | J75: 21456 | K75: 17165 | L75: 12874 | M75: 8582 | N75: 4291 | O75: 0
A76: Ergon Energy | B76: 1 | C76: Major | D76: LED | F76: =F6+F54 -> 785.9906864 | G76: =G6+G54 -> 1896.02817 | H76: =H6+H54 -> 2882 | I76: =I6+SUM(H54:I54) -> 3694 | J76: =J6+SUM(H54:J54) -> 8073.2 | K76: =K6+K54 -> 11949 | L76: =L6+SUM(K54:L54) -> 16332 | M76: =M6+SUM(K54:M54) -> 20718 | N76: =N6+SUM(K54:N54) -> 25105 | O76: =O6+SUM(K54:O54) -> 29494
A77: Ergon Energy | B77: 1 | C77: Minor | D77: CONV | F77: =F7 -> 68404 | G77: 53974 | H77: 30065 | I77: 16683 | J77: 13903 | K77: 11122 | L77: 8342 | M77: 5561 | N77: 2781 | O77: 0
A78: Ergon Energy | B78: 1 | C78: Minor | D78: LED | F78: =F8+F55 -> 1847.085156 | G78: =G8+G55 -> 17485.52213 | H78: =H8+H55 -> 42216 | I78: =I8+SUM(H55:I55) -> 58130 | J78: =J8+SUM(H55:J55) -> 61189.4 | K78: =K8+K55+K64 -> 62739 | L78: =L8+SUM(K55:L55)+L64 -> 65807 | M78: =M8+SUM(K55:M55)+M64 -> 68880 | N78: =N8+SUM(K55:N55)+N64 -> 71956 | O78: =O8+SUM(K55:O55)+O64 -> 75037
A79: Ergon Energy | B79: 2 | C79: Major | D79: CONV | F79: =F9 -> 12883 | G79: 12715 | H79: 12494 | I79: 12293 | J79: 10244 | K79: 8195 | L79: 6147 | M79: 4098 | N79: 2049 | O79: 0
A80: Ergon Energy | B80: 2A | C80: Major | D80: LED | F80: =F10 -> 558 | G80: 924 | H80: 1483 | I80: =I10 -> 2217 | J80: 4266 | K80: =K10 -> 6315 | L80: 8363 | M80: 10412 | N80: 12461 | O80: 14510
A81: Ergon Energy | B81: 2 | C81: Minor | D81: CONV | F81: 34480 | G81: 29753 | H81: 21261 | I81: =I11 -> 15755 | J81: =J11 -> 13129 | K81: =K11 -> 10503 | L81: =L11 -> 7878 | M81: =M11 -> 5252 | N81: =N11 -> 2626 | O81: 0
A82: Ergon Energy | B82: 2A | C82: Minor | D82: LED | F82: 1302 | G82: 6637 | H82: 16154 | I82: =I12 -> 21842 | J82: 24468 | K82: =K12+K65 -> 28577 | L82: =L12+L65 -> 31202 | M82: =M12+M65 -> 33828 | N82: 36454 | O82: 39080
A83: Ergon Energy | B83: All | C83: All | D83: CONV | F83: =SUMIF($D$75:$D$82,$D83,F$75:F$82) -> 143661 | G83: 123387 | H83: 90015 | I83: 70478 | J83: 58732 | K83: 46985 | L83: 35241 | M83: 23493 | N83: 11747 | O83: 0
A84: Ergon Energy | B84: All | C84: All | D84: LED | F84: 4493.075842 | G84: 26942.5503 | H84: 62735 | I84: 85883 | J84: 97996.6 | K84: 109580 | L84: 121704 | M84: 133838 | N84: 145976 | O84: =SUMIF($D$75:$D$82,$D84,O$75:O$82) -> 158121
A85: Ergon Energy | B85: All | C85: All | D85: All | F85: =SUM(F83:F84) -> 148154.0758 | G85: =SUM(G83:G84) -> 150329.5503 | H85: 152750 | I85: 156361 | J85: 156728.6 | K85: 156565 | L85: 156945 | M85: 157331 | N85: 157723 | O85: 158121
J86: Check | K86: =IF(K15+K56+K66-K85=0,0,1) -> 0 | L86: =IF(L15+SUM(K56,L56)+L66-L85=0,0,1) -> 0 | M86: =IF(M15+SUM(K56:M56)+M66-M85=0,0,1) -> 0 | N86: =IF(N15+SUM(K56:N56)+N66-N85=0,0,1) -> 0 | O86: =IF(O15+SUM(K56:O56)+O66-O85=0,0,1) -> 0
A87: Proportion | B87: LED | C87: Rate 1 | F87: =((F76-E76)+(F78-E78))/((F76-E76)+(F78-E78)+(F80-E80)+(F82-E82)) -> 0.5860296898 | G87: 0.7460519616 | H87: 0.7184881146 | I87: 0.7225678244 | J87: 0.614070136 | K87: 0.4683771604 | L87: 0.6145661498 | M87: 0.6147189715 | N87: 0.6148459384 | O87: 0.6150679292
C88: Rate2A | F88: =1-F87 -> 0.4139703102 | G88: 0.2539480384 | H88: 0.2815118854 | I88: 0.2774321756 | J88: 0.385929864 | K88: =1-K87 -> 0.5316228396 | L88: =1-L87 -> 0.3854338502 | M88: 0.3852810285 | N88: 0.3851540616 | O88: 0.3849320708
A89: Note:
A90: No to little growth assumed in Table 4 as the capex is for the conversion to LED of existing light population. Growth of 2.5% is included in Table 5
A91: Customer funded new installations removed from the Rate 2A tariff and included in Table 5 below to be treated separately
A94: Table 5 - Rate 2 customer contributed assets | K94: 100% LED deployment by 2030
E95: Previous period | F95: Current period | K95: Forthcoming period
E96: Actual | F96: Actual | G96: Actual | H96: Actual | I96: Actual | J96: Forecast | K96: Forecast | L96: Forecast | M96: Forecast | N96: Forecast | O96: Forecast
A97: DNSP | B97: Rate | C97: Road type | D97: Light type | E97: 2019-20 | F97: 2020-21 | G97: 2021-22 | H97: 2022-23 | I97: 2023-24 | J97: 2024-25 | K97: 2025-26 | L97: 2026-27 | M97: 2027-28 | N97: 2028-29 | O97: 2029-30
A98: New installations and new subdivisions
A99: Ergon Energy | B99: 2 | C99: Major | D99: LED | F99: =ROUND(F80*'Ratios & Assumptions'!$C$21,0) -> 34 | G99: =ROUND(G80*'Ratios & Assumptions'!$C$21,0) -> 56 | H99: =ROUND(H80*'Ratios & Assumptions'!$C$21,0) -> 90 | I99: =ROUND(I80*'Ratios & Assumptions'!$C$21,0) -> 135 | J99: =ROUND(J80*'Ratios & Assumptions'!$C$21,0) -> 260 | K99: =ROUND(J99*(1+'Ratios & Assumptions'!$D$13),0) -> 267 | L99: =ROUND(K99*(1+'Ratios & Assumptions'!$D$13),0) -> 274 | M99: =ROUND(L99*(1+'Ratios & Assumptions'!$D$13),0) -> 281 | N99: =ROUND(M99*(1+'Ratios & Assumptions'!$D$13),0) -> 288 | O99: =ROUND(N99*(1+'Ratios & Assumptions'!$D$13),0) -> 295
A100: Ergon Energy | B100: 2 | C100: Minor | D100: LED | F100: =ROUND(F82*'Ratios & Assumptions'!$C$22,0) -> 53 | G100: =ROUND(G82*'Ratios & Assumptions'!$C$22,0) -> 271 | H100: =ROUND(H82*'Ratios & Assumptions'!$C$22,0) -> 659 | I100: =ROUND(I82*'Ratios & Assumptions'!$C$22,0) -> 891 | J100: =ROUND(J82*'Ratios & Assumptions'!$C$22,0) -> 998 | K100: =ROUND(J100*(1+'Ratios & Assumptions'!$D$13),0) -> 1023 | L100: =ROUND(K100*(1+'Ratios & Assumptions'!$D$13),0) -> 1049 | M100: =ROUND(L100*(1+'Ratios & Assumptions'!$D$13),0) -> 1075 | N100: =ROUND(M100*(1+'Ratios & Assumptions'!$D$13),0) -> 1102 | O100: =ROUND(N100*(1+'Ratios & Assumptions'!$D$13),0) -> 1130
A101: Rate 4 reassigned to Rate 2 on 1 July 2025
A102: Ergon Energy | B102: 4 | C102: Major | D102: LED | F102: 10 | G102: 34 | H102: 60 | I102: 116 | J102: 118 | K102: =$J$102 -> 118 | L102: =$J$102 -> 118 | M102: 118 | N102: 118 | O102: 118
A103: Ergon Energy | B103: 4 | C103: Minor | D103: LED | F103: 7 | G103: 18 | H103: 29 | I103: 48 | J103: 80 | K103: =$J$103 -> 80 | L103: =$J$103 -> 80 | M103: 80 | N103: 80 | O103: 80
A104: All | B104: 2 | C104: Major | D104: LED | F104: =F99 -> 34 | G104: =G99 -> 56 | H104: 90 | I104: 135 | J104: 260 | K104: =K99+K102 -> 385 | L104: =L99+L102 -> 392 | M104: 399 | N104: 406 | O104: 413
B105: 2 | C105: Minor | D105: LED | F105: =F100 -> 53 | G105: =G100 -> 271 | H105: 659 | I105: 891 | J105: 998 | K105: =K100+K103 -> 1103 | L105: =L100+L103 -> 1129 | M105: 1155 | N105: 1182 | O105: 1210
A106: All | B106: 2 | C106: All | D106: LED | F106: =F104+F105 -> 87 | G106: 327 | H106: 749 | I106: 1026 | J106: 1258 | K106: 1488 | L106: 1521 | M106: 1554 | N106: 1588 | O106: 1623
A107: Notes:
A108: Historical 2019-20 to 2022-23 figures for Other Contributed assets, based on internal reports between 2019-20 to 2020-21, growth is relatively modest
A109: Historical 2019-20 to 2022-23 figures for New Installations based on RIN data
A110: Forecast growth rate of 2.5%

Sheet >>Unit Rates

Sheet ERG Unit Rates
A1: Table 1: Ergon Energy Public Light - Unit costs per luminaire
D2: Unit cost
A3: Activity type | B3: Asset type | C3: Cost categories | D3: $2022-30
D4: Actual
A5: Light installation | B5: steel underground decorative minor (typically Rate 2) | C5: Labour | D5: N/A
C6: Material | D6: N/A
C7: Contractor | D7: N/A
B8: steel underground minor | C8: Labour | D8: N/A
C9: Material | D9: N/A
C10: Contractor | D10: N/A
B11: Rate 1 Major LED install | C11: Labour | D11: 14745.4861
C12: Material | D12: 9330.205016
C13: Contractor | D13: 7769.165899
B14: Rate 1 Minor LED install | C14: Labour | D14: 3459.300804
C15: Material | D15: 882.7597103
C16: Contractor | D16: 1822.651465
B17: High Pressure Sodium - Major (Rate 1 and 2) Change to Rate 2 Major LED Install | C17: Labour | D17: 0
C18: Material | D18: 0
C19: Contractor | D19: 0
B20: High Pressure Sodium - Minor Change to Rate 2 Minor LED Install | C20: Labour | D20: 0
C21: Material | D21: 0
C22: Contractor | D22: 0
A23: Light replacement | B23: LED Major | C23: Labour | D23: 0
C24: Material | D24: 584
C25: Contractor | D25: 125
B26: LED Minor | C26: Labour | D26: 0
C27: Material | D27: 197
C28: Contractor | D28: 125
B29: Nostalgia LED | C29: Labour | D29: 0
C30: Material | D30: 690.66
C31: Contractor | D31: 295

Sheet >>Forecast capex

Sheet ERG - Forecast capex scenarios
A1: Table 1 - ERG Light Replacement Capex - CONV to LED
A2: Real $2022-23 | F2: 100% LED deployment by 2030
F3: Forecast | G3: Forecast | H3: Forecast | I3: Forecast | J3: Forecast
A4: DNSP | B4: Rate | C4: Road type | D4: Light type | E4: Cost category | F4: 2025-26 | G4: 2026-27 | H4: 2027-28 | I4: 2028-29 | J4: 2029-30
A5: Ergon Energy | B5: 1 | C5: Major | D5: LED | E5: Labour | F5: ='ERG Unit Rates'!$D23*'ERG - Yearly volume scenarios'!K$41 -> 0 | G5: ='ERG Unit Rates'!$D23*'ERG - Yearly volume scenarios'!L$41 -> 0 | H5: ='ERG Unit Rates'!$D23*'ERG - Yearly volume scenarios'!M$41 -> 0 | I5: ='ERG Unit Rates'!$D23*'ERG - Yearly volume scenarios'!N$41 -> 0 | J5: ='ERG Unit Rates'!$D23*'ERG - Yearly volume scenarios'!O$41 -> 0
B6: 1 | C6: Major | D6: LED | E6: Material | F6: ='ERG Unit Rates'!$D24*'ERG - Yearly volume scenarios'!K$41 -> 2505944 | G6: ='ERG Unit Rates'!$D24*'ERG - Yearly volume scenarios'!L$41 -> 2505944 | H6: ='ERG Unit Rates'!$D24*'ERG - Yearly volume scenarios'!M$41 -> 2505944 | I6: ='ERG Unit Rates'!$D24*'ERG - Yearly volume scenarios'!N$41 -> 2505944 | J6: ='ERG Unit Rates'!$D24*'ERG - Yearly volume scenarios'!O$41 -> 2505944
B7: 1 | C7: Major | D7: LED | E7: Contractor | F7: ='ERG Unit Rates'!$D25*'ERG - Yearly volume scenarios'!K$41 -> 536375 | G7: ='ERG Unit Rates'!$D25*'ERG - Yearly volume scenarios'!L$41 -> 536375 | H7: ='ERG Unit Rates'!$D25*'ERG - Yearly volume scenarios'!M$41 -> 536375 | I7: ='ERG Unit Rates'!$D25*'ERG - Yearly volume scenarios'!N$41 -> 536375 | J7: ='ERG Unit Rates'!$D25*'ERG - Yearly volume scenarios'!O$41 -> 536375
A8: Ergon Energy | B8: 1 | C8: Minor | D8: LED | E8: Labour | F8: ='ERG Unit Rates'!$D26*'ERG - Yearly volume scenarios'!K$42 -> 0 | G8: ='ERG Unit Rates'!$D26*'ERG - Yearly volume scenarios'!L$42 -> 0 | H8: ='ERG Unit Rates'!$D26*'ERG - Yearly volume scenarios'!M$42 -> 0 | I8: ='ERG Unit Rates'!$D26*'ERG - Yearly volume scenarios'!N$42 -> 0 | J8: ='ERG Unit Rates'!$D26*'ERG - Yearly volume scenarios'!O$42 -> 0
B9: 1 | C9: Minor | D9: LED | E9: Material | F9: ='ERG Unit Rates'!$D27*'ERG - Yearly volume scenarios'!K$42 -> 547857 | G9: ='ERG Unit Rates'!$D27*'ERG - Yearly volume scenarios'!L$42 -> 547857 | H9: ='ERG Unit Rates'!$D27*'ERG - Yearly volume scenarios'!M$42 -> 547857 | I9: ='ERG Unit Rates'!$D27*'ERG - Yearly volume scenarios'!N$42 -> 547857 | J9: ='ERG Unit Rates'!$D27*'ERG - Yearly volume scenarios'!O$42 -> 547857
B10: 1 | C10: Minor | D10: LED | E10: Contractor | F10: ='ERG Unit Rates'!$D28*'ERG - Yearly volume scenarios'!K$42 -> 347625 | G10: ='ERG Unit Rates'!$D28*'ERG - Yearly volume scenarios'!L$42 -> 347625 | H10: ='ERG Unit Rates'!$D28*'ERG - Yearly volume scenarios'!M$42 -> 347625 | I10: ='ERG Unit Rates'!$D28*'ERG - Yearly volume scenarios'!N$42 -> 347625 | J10: ='ERG Unit Rates'!$D28*'ERG - Yearly volume scenarios'!O$42 -> 347625
A11: Ergon Energy | B11: 2A | C11: Major | D11: LED | E11: Labour | F11: ='ERG Unit Rates'!$D23*'ERG - Yearly volume scenarios'!K$43 -> 0 | G11: ='ERG Unit Rates'!$D23*'ERG - Yearly volume scenarios'!L$43 -> 0 | H11: ='ERG Unit Rates'!$D23*'ERG - Yearly volume scenarios'!M$43 -> 0 | I11: ='ERG Unit Rates'!$D23*'ERG - Yearly volume scenarios'!N$43 -> 0 | J11: ='ERG Unit Rates'!$D23*'ERG - Yearly volume scenarios'!O$43 -> 0
B12: 2A | C12: Major | D12: LED | E12: Material | F12: ='ERG Unit Rates'!$D24*'ERG - Yearly volume scenarios'!K$43 -> 1196616 | G12: ='ERG Unit Rates'!$D24*'ERG - Yearly volume scenarios'!L$43 -> 1196616 | H12: ='ERG Unit Rates'!$D24*'ERG - Yearly volume scenarios'!M$43 -> 1196616 | I12: ='ERG Unit Rates'!$D24*'ERG - Yearly volume scenarios'!N$43 -> 1196616 | J12: ='ERG Unit Rates'!$D24*'ERG - Yearly volume scenarios'!O$43 -> 1196616
B13: 2A | C13: Major | D13: LED | E13: Contractor | F13: ='ERG Unit Rates'!$D25*'ERG - Yearly volume scenarios'!K$43 -> 256125 | G13: ='ERG Unit Rates'!$D25*'ERG - Yearly volume scenarios'!L$43 -> 256125 | H13: ='ERG Unit Rates'!$D25*'ERG - Yearly volume scenarios'!M$43 -> 256125 | I13: ='ERG Unit Rates'!$D25*'ERG - Yearly volume scenarios'!N$43 -> 256125 | J13: ='ERG Unit Rates'!$D25*'ERG - Yearly volume scenarios'!O$43 -> 256125
A14: Ergon Energy | B14: 2A | C14: Minor | D14: LED | E14: Labour | F14: ='ERG Unit Rates'!$D26*'ERG - Yearly volume scenarios'!K$44 -> 0 | G14: ='ERG Unit Rates'!$D26*'ERG - Yearly volume scenarios'!L$44 -> 0 | H14: ='ERG Unit Rates'!$D26*'ERG - Yearly volume scenarios'!M$44 -> 0 | I14: ='ERG Unit Rates'!$D26*'ERG - Yearly volume scenarios'!N$44 -> 0 | J14: ='ERG Unit Rates'!$D26*'ERG - Yearly volume scenarios'!O$44 -> 0
B15: 2A | C15: Minor | D15: LED | E15: Material | F15: ='ERG Unit Rates'!$D27*'ERG - Yearly volume scenarios'!K$44 -> 517322 | G15: ='ERG Unit Rates'!$D27*'ERG - Yearly volume scenarios'!L$44 -> 517322 | H15: ='ERG Unit Rates'!$D27*'ERG - Yearly volume scenarios'!M$44 -> 517322 | I15: ='ERG Unit Rates'!$D27*'ERG - Yearly volume scenarios'!N$44 -> 517322 | J15: ='ERG Unit Rates'!$D27*'ERG - Yearly volume scenarios'!O$44 -> 517322
B16: 2A | C16: Minor | D16: LED | E16: Contractor | F16: ='ERG Unit Rates'!$D28*'ERG - Yearly volume scenarios'!K$44 -> 328250 | G16: ='ERG Unit Rates'!$D28*'ERG - Yearly volume scenarios'!L$44 -> 328250 | H16: ='ERG Unit Rates'!$D28*'ERG - Yearly volume scenarios'!M$44 -> 328250 | I16: ='ERG Unit Rates'!$D28*'ERG - Yearly volume scenarios'!N$44 -> 328250 | J16: ='ERG Unit Rates'!$D28*'ERG - Yearly volume scenarios'!O$44 -> 328250
A17: Ergon Energy | B17: 1 | C17: All | D17: LED | E17: Labour | F17: =SUMIFS(F$5:F$16,$B$5:$B$16,$B17,$E$5:$E$16,$E17) -> 0 | G17: 0 | H17: 0 | I17: 0 | J17: 0
B18: 1 | C18: All | D18: LED | E18: Material | F18: =SUMIFS(F$5:F$16,$B$5:$B$16,$B18,$E$5:$E$16,$E18) -> 3053801 | G18: 3053801 | H18: 3053801 | I18: 3053801 | J18: 3053801
B19: 1 | C19: All | D19: LED | E19: Contractor | F19: 884000 | G19: 884000 | H19: 884000 | I19: 884000 | J19: 884000
A20: Ergon Energy | B20: 2A | C20: All | D20: LED | E20: Labour | F20: 0 | G20: 0 | H20: 0 | I20: 0 | J20: 0
B21: 2A | C21: All | D21: LED | E21: Material | F21: 1713938 | G21: 1713938 | H21: 1713938 | I21: 1713938 | J21: 1713938
B22: 2A | C22: All | D22: LED | E22: Contractor | F22: 584375 | G22: 584375 | H22: 584375 | I22: 584375 | J22: 584375
A23: Ergon Energy | B23: All | C23: All | D23: LED | E23: Labour | F23: =SUMIF($E$5:$E$16,$E23,F$5:F$16) -> 0 | G23: 0 | H23: 0 | I23: 0 | J23: 0
B24: All | C24: All | D24: LED | E24: Material | F24: =SUMIF($E$5:$E$16,$E24,F$5:F$16) -> 4767739 | G24: 4767739 | H24: 4767739 | I24: 4767739 | J24: 4767739
B25: All | C25: All | D25: LED | E25: Contractor | F25: 1468375 | G25: 1468375 | H25: 1468375 | I25: 1468375 | J25: 1468375
A26: Ergon Energy | B26: All | C26: All | D26: LED | E26: All | F26: =SUM(F23:F25) -> 6236114 | G26: 6236114 | H26: 6236114 | I26: 6236114 | J26: 6236114
A28: Table 2 - ERG Light Replacement Capex - CONV to CONV
A29: Real $2022-23 (direct costs) | F29: 100% LED deployment by 2030
F30: Forecast | G30: Forecast | H30: Forecast | I30: Forecast | J30: Forecast
A31: DNSP | B31: Rate | C31: Road Type | D31: Light type | E31: Cost category | F31: 2025-26 | G31: 2026-27 | H31: 2027-28 | I31: 2028-29 | J31: 2029-30
A32: Ergon Energy | B32: 1 | C32: Major | D32: CONV | E32: Labour | F32: 0 | G32: 0 | H32: 0 | I32: 0 | J32: 0 | K32: No like for like replacements for conventional assets for 2025-30
B33: 1 | C33: Major | D33: CONV | E33: Material | F33: 0 | G33: 0 | H33: 0 | I33: 0 | J33: 0 | K33: No like for like replacements for conventional assets for 2025-30
B34: 1 | C34: Major | D34: CONV | E34: Contractor | F34: 0 | G34: 0 | H34: 0 | I34: 0 | J34: 0 | K34: No like for like replacements for conventional assets for 2025-30
A35: Ergon Energy | B35: 1 | C35: Minor | D35: CONV | E35: Labour | F35: 0 | G35: 0 | H35: 0 | I35: 0 | J35: 0 | K35: No like for like replacements for conventional assets for 2025-30
B36: 1 | C36: Minor | D36: CONV | E36: Material | F36: 0 | G36: 0 | H36: 0 | I36: 0 | J36: 0 | K36: No like for like replacements for conventional assets for 2025-30
B37: 1 | C37: Minor | D37: CONV | E37: Contractor | F37: 0 | G37: 0 | H37: 0 | I37: 0 | J37: 0 | K37: No like for like replacements for conventional assets for 2025-30
A38: Ergon Energy | B38: 2 | C38: Major | D38: CONV | E38: Labour | F38: 0 | G38: 0 | H38: 0 | I38: 0 | J38: 0 | K38: No like for like replacements for conventional assets for 2025-30
B39: 2 | C39: Major | D39: CONV | E39: Material | F39: 0 | G39: 0 | H39: 0 | I39: 0 | J39: 0 | K39: No like for like replacements for conventional assets for 2025-30
B40: 2 | C40: Major | D40: CONV | E40: Contractor | F40: 0 | G40: 0 | H40: 0 | I40: 0 | J40: 0 | K40: No like for like replacements for conventional assets for 2025-30
A41: Ergon Energy | B41: 2 | C41: Minor | D41: CONV | E41: Labour | F41: 0 | G41: 0 | H41: 0 | I41: 0 | J41: 0 | K41: No like for like replacements for conventional assets for 2025-30
B42: 2 | C42: Minor | D42: CONV | E42: Material | F42: 0 | G42: 0 | H42: 0 | I42: 0 | J42: 0 | K42: No like for like replacements for conventional assets for 2025-30
B43: 2 | C43: Minor | D43: CONV | E43: Contractor | F43: 0 | G43: 0 | H43: 0 | I43: 0 | J43: 0 | K43: No like for like replacements for conventional assets for 2025-30
A44: Ergon Energy | B44: 1 | C44: All | D44: CONV | E44: Labour | F44: =SUMIFS(F32:F43,$B$32:$B$43,$B44,$E$32:$E$43,$E44) -> 0 | G44: 0 | H44: 0 | I44: 0 | J44: 0
B45: 1 | C45: All | D45: CONV | E45: Material | F45: =SUMIFS(F$32:F$43,$B$32:$B$43,$B45,$E$32:$E$43,$E45) -> 0 | G45: 0 | H45: 0 | I45: 0 | J45: 0
B46: 1 | C46: All | D46: CONV | E46: Contractor | F46: 0 | G46: 0 | H46: 0 | I46: 0 | J46: 0
A47: Ergon Energy | B47: 2 | C47: All | D47: CONV | E47: Labour | F47: 0 | G47: 0 | H47: 0 | I47: 0 | J47: 0
B48: 2 | C48: All | D48: CONV | E48: Material | F48: 0 | G48: 0 | H48: 0 | I48: 0 | J48: 0
B49: 2 | C49: All | D49: CONV | E49: Contractor | F49: 0 | G49: 0 | H49: 0 | I49: 0 | J49: 0
A50: Ergon Energy | B50: All | C50: All | D50: CONV | E50: Labour | F50: =SUMIF($E$32:$E$43,$E50,F$32:F$43) -> 0 | G50: 0 | H50: 0 | I50: 0 | J50: 0
B51: All | C51: All | D51: CONV | E51: Material | F51: =SUMIF($E$32:$E$43,$E51,F$32:F$43) -> 0 | G51: 0 | H51: 0 | I51: 0 | J51: 0
B52: All | C52: All | D52: CONV | E52: Contractor | F52: 0 | G52: 0 | H52: 0 | I52: 0 | J52: 0
A53: Ergon Energy | B53: All | C53: All | D53: CONV | E53: All | F53: =SUM(F50:F52) -> 0 | G53: 0 | H53: 0 | I53: 0 | J53: 0
A54: Note:
A55: Assumed $0 given that we do not have any stocks of conventional lights
A57: Table 3 - ERG Light Installation Capex
A58: Real $2022-23 (direct costs) | F58: 100% LED deployment by 2030
F59: Forecast | G59: Forecast | H59: Forecast | I59: Forecast | J59: Forecast
A60: DNSP | B60: Rate | C60: Road type | D60: Light type | E60: Cost category | F60: 2025-26 | G60: 2026-27 | H60: 2027-28 | I60: 2028-29 | J60: 2029-30
A61: Ergon Energy | B61: 1 | C61: Major | D61: LED | E61: Labour | F61: ='ERG - Yearly volume scenarios'!K$54*'ERG Unit Rates'!$D11 -> 1327093.749 | G61: ='ERG - Yearly volume scenarios'!L$54*'ERG Unit Rates'!$D11 -> 1356584.721 | H61: ='ERG - Yearly volume scenarios'!M$54*'ERG Unit Rates'!$D11 -> 1386075.693 | I61: ='ERG - Yearly volume scenarios'!N$54*'ERG Unit Rates'!$D11 -> 1415566.665 | J61: ='ERG - Yearly volume scenarios'!O$54*'ERG Unit Rates'!$D11 -> 1445057.638
B62: 1 | C62: Major | D62: LED | E62: Material | F62: ='ERG - Yearly volume scenarios'!K$54*'ERG Unit Rates'!$D12 -> 839718.4514 | G62: ='ERG - Yearly volume scenarios'!L$54*'ERG Unit Rates'!$D12 -> 858378.8615 | H62: ='ERG - Yearly volume scenarios'!M$54*'ERG Unit Rates'!$D12 -> 877039.2715 | I62: ='ERG - Yearly volume scenarios'!N$54*'ERG Unit Rates'!$D12 -> 895699.6815 | J62: ='ERG - Yearly volume scenarios'!O$54*'ERG Unit Rates'!$D12 -> 914360.0916
B63: 1 | C63: Major | D63: LED | E63: Contractor | F63: ='ERG - Yearly volume scenarios'!K$54*'ERG Unit Rates'!$D13 -> 699224.9309 | G63: ='ERG - Yearly volume scenarios'!L$54*'ERG Unit Rates'!$D13 -> 714763.2627 | H63: ='ERG - Yearly volume scenarios'!M$54*'ERG Unit Rates'!$D13 -> 730301.5945 | I63: ='ERG - Yearly volume scenarios'!N$54*'ERG Unit Rates'!$D13 -> 745839.9263 | J63: ='ERG - Yearly volume scenarios'!O$54*'ERG Unit Rates'!$D13 -> 761378.2581
A64: Ergon Energy | B64: 1 | C64: Minor | D64: LED | E64: Labour | F64: ='ERG - Yearly volume scenarios'!K$55*'ERG Unit Rates'!$D14 -> 982441.4283 | G64: ='ERG - Yearly volume scenarios'!L$55*'ERG Unit Rates'!$D14 -> 996278.6315 | H64: ='ERG - Yearly volume scenarios'!M$55*'ERG Unit Rates'!$D14 -> 1010115.835 | I64: ='ERG - Yearly volume scenarios'!N$55*'ERG Unit Rates'!$D14 -> 1023953.038 | J64: ='ERG - Yearly volume scenarios'!O$55*'ERG Unit Rates'!$D14 -> 1037790.241
B65: 1 | C65: Minor | D65: LED | E65: Material | F65: ='ERG - Yearly volume scenarios'!K$55*'ERG Unit Rates'!$D15 -> 250703.7577 | G65: ='ERG - Yearly volume scenarios'!L$55*'ERG Unit Rates'!$D15 -> 254234.7966 | H65: ='ERG - Yearly volume scenarios'!M$55*'ERG Unit Rates'!$D15 -> 257765.8354 | I65: ='ERG - Yearly volume scenarios'!N$55*'ERG Unit Rates'!$D15 -> 261296.8743 | J65: ='ERG - Yearly volume scenarios'!O$55*'ERG Unit Rates'!$D15 -> 264827.9131
B66: 1 | C66: Minor | D66: LED | E66: Contractor | F66: ='ERG - Yearly volume scenarios'!K$55*'ERG Unit Rates'!$D16 -> 517633.0161 | G66: ='ERG - Yearly volume scenarios'!L$55*'ERG Unit Rates'!$D16 -> 524923.6219 | H66: ='ERG - Yearly volume scenarios'!M$55*'ERG Unit Rates'!$D16 -> 532214.2278 | I66: ='ERG - Yearly volume scenarios'!N$55*'ERG Unit Rates'!$D16 -> 539504.8336 | J66: ='ERG - Yearly volume scenarios'!O$55*'ERG Unit Rates'!$D16 -> 546795.4395
A67: Ergon Energy | B67: 2A | C67: Major | D67: LED | E67: Labour | F67: 0 | G67: 0 | H67: 0 | I67: 0 | J67: 0 | K67: Assumes customers or real estate developers are funding the upfront capex to install new lights
B68: 2A | C68: Major | D68: LED | E68: Material | F68: 0 | G68: 0 | H68: 0 | I68: 0 | J68: 0 | K68: Assumes customers or real estate developers are funding the upfront capex to install new lights
B69: 2A | C69: Major | D69: LED | E69: Contractor | F69: 0 | G69: 0 | H69: 0 | I69: 0 | J69: 0 | K69: Assumes customers or real estate developers are funding the upfront capex to install new lights
A70: Ergon Energy | B70: 2A | C70: Minor | D70: LED | E70: Labour | F70: 0 | G70: 0 | H70: 0 | I70: 0 | J70: 0 | K70: Assumes customers or real estate developers are funding the upfront capex to install new lights
B71: 2A | C71: Minor | D71: LED | E71: Material | F71: 0 | G71: 0 | H71: 0 | I71: 0 | J71: 0 | K71: Assumes customers or real estate developers are funding the upfront capex to install new lights
B72: 2A | C72: Minor | D72: LED | E72: Contractor | F72: 0 | G72: 0 | H72: 0 | I72: 0 | J72: 0 | K72: Assumes customers or real estate developers are funding the upfront capex to install new lights
A73: Ergon Energy | B73: 1 | C73: All | D73: LED | E73: Labour | F73: =SUMIFS(F$61:F$72,$B$61:$B$72,$B73,$E$61:$E$72,$E73) -> 2309535.177 | G73: 2352863.353 | H73: 2396191.528 | I73: 2439519.703 | J73: 2482847.879
B74: 1 | C74: All | D74: LED | E74: Material | F74: =SUMIFS(F$61:F$72,$B$61:$B$72,$B74,$E$61:$E$72,$E74) -> 1090422.209 | G74: 1112613.658 | H74: 1134805.107 | I74: 1156996.556 | J74: 1179188.005
B75: 1 | C75: All | D75: LED | E75: Contractor | F75: 1216857.947 | G75: 1239686.885 | H75: 1262515.822 | I75: 1285344.76 | J75: 1308173.698
A76: Ergon Energy | B76: 2A | C76: All | D76: LED | E76: Labour | F76: 0 | G76: 0 | H76: 0 | I76: 0 | J76: 0
B77: 2A | C77: All | D77: LED | E77: Material | F77: 0 | G77: 0 | H77: 0 | I77: 0 | J77: 0
B78: 2A | C78: All | D78: LED | E78: Contractor | F78: 0 | G78: 0 | H78: 0 | I78: 0 | J78: 0
A79: Ergon Energy | B79: All | C79: All | D79: All | E79: Labour | F79: =SUMIF($E$61:$E$72,$E79,F$61:F$72) -> 2309535.177 | G79: 2352863.353 | H79: 2396191.528 | I79: 2439519.703 | J79: 2482847.879
B80: All | C80: All | D80: All | E80: Material | F80: =SUMIF($E$61:$E$72,$E80,F$61:F$72) -> 1090422.209 | G80: 1112613.658 | H80: 1134805.107 | I80: 1156996.556 | J80: 1179188.005
B81: All | C81: All | D81: All | E81: Contractor | F81: 1216857.947 | G81: 1239686.885 | H81: 1262515.822 | I81: 1285344.76 | J81: 1308173.698
A82: Ergon Energy | B82: All | C82: All | D82: All | E82: All | F82: =SUM(F79:F81) -> 4616815.333 | G82: 4705163.895 | H82: 4793512.457 | I82: 4881861.019 | J82: 4970209.581
A85: Table 4 - ERG Nostalgia Replacement Capex
A86: Real $2022-23 (direct costs) | F86: 100% LED deployment by 2030
F87: Forecast | G87: Forecast | H87: Forecast | I87: Forecast | J87: Forecast
A88: DNSP | B88: Rate | C88: Road type | D88: Light type | E88: Cost category | F88: 2025-26 | G88: 2026-27 | H88: 2027-28 | I88: 2028-29 | J88: 2029-30
A89: Ergon Energy | B89: 1 | C89: Minor | D89: LED | E89: Labour | F89: ='ERG - Yearly volume scenarios'!K$64*'ERG Unit Rates'!$D29 -> 0 | G89: ='ERG - Yearly volume scenarios'!L$64*'ERG Unit Rates'!$D29 -> 0 | H89: ='ERG - Yearly volume scenarios'!M$64*'ERG Unit Rates'!$D29 -> 0 | I89: ='ERG - Yearly volume scenarios'!N$64*'ERG Unit Rates'!$D29 -> 0 | J89: ='ERG - Yearly volume scenarios'!O$64*'ERG Unit Rates'!$D29 -> 0
B90: 1 | C90: Minor | D90: LED | E90: Material | F90: ='ERG - Yearly volume scenarios'!K$64*'ERG Unit Rates'!$D30 -> 0 | G90: ='ERG - Yearly volume scenarios'!L$64*'ERG Unit Rates'!$D30 -> 0 | H90: ='ERG - Yearly volume scenarios'!M$64*'ERG Unit Rates'!$D30 -> 0 | I90: ='ERG - Yearly volume scenarios'!N$64*'ERG Unit Rates'!$D30 -> 0 | J90: ='ERG - Yearly volume scenarios'!O$64*'ERG Unit Rates'!$D30 -> 0
B91: 1 | C91: Minor | D91: LED | E91: Contractor | F91: ='ERG - Yearly volume scenarios'!K$64*'ERG Unit Rates'!$D31 -> 0 | G91: ='ERG - Yearly volume scenarios'!L$64*'ERG Unit Rates'!$D31 -> 0 | H91: ='ERG - Yearly volume scenarios'!M$64*'ERG Unit Rates'!$D31 -> 0 | I91: ='ERG - Yearly volume scenarios'!N$64*'ERG Unit Rates'!$D31 -> 0 | J91: ='ERG - Yearly volume scenarios'!O$64*'ERG Unit Rates'!$D31 -> 0
A92: Ergon Energy | B92: 2A | C92: Minor | D92: LED | E92: Labour | F92: ='ERG - Yearly volume scenarios'!K$65*'ERG Unit Rates'!$D29 -> 0 | G92: ='ERG - Yearly volume scenarios'!L$65*'ERG Unit Rates'!$D29 -> 0 | H92: ='ERG - Yearly volume scenarios'!M$65*'ERG Unit Rates'!$D29 -> 0 | I92: ='ERG - Yearly volume scenarios'!N$65*'ERG Unit Rates'!$D29 -> 0 | J92: ='ERG - Yearly volume scenarios'!O$65*'ERG Unit Rates'!$D29 -> 0
B93: 2A | C93: Minor | D93: LED | E93: Material | F93: ='ERG - Yearly volume scenarios'!K$65*'ERG Unit Rates'!$D30 -> 1024248.78 | G93: ='ERG - Yearly volume scenarios'!L$65*'ERG Unit Rates'!$D30 -> 1024248.78 | H93: ='ERG - Yearly volume scenarios'!M$65*'ERG Unit Rates'!$D30 -> 1024248.78 | I93: ='ERG - Yearly volume scenarios'!N$65*'ERG Unit Rates'!$D30 -> 1024248.78 | J93: ='ERG - Yearly volume scenarios'!O$65*'ERG Unit Rates'!$D30 -> 1024248.78
B94: 2A | C94: Minor | D94: LED | E94: Contractor | F94: ='ERG - Yearly volume scenarios'!K$65*'ERG Unit Rates'!$D31 -> 437485 | G94: ='ERG - Yearly volume scenarios'!L$65*'ERG Unit Rates'!$D31 -> 437485 | H94: ='ERG - Yearly volume scenarios'!M$65*'ERG Unit Rates'!$D31 -> 437485 | I94: ='ERG - Yearly volume scenarios'!N$65*'ERG Unit Rates'!$D31 -> 437485 | J94: ='ERG - Yearly volume scenarios'!O$65*'ERG Unit Rates'!$D31 -> 437485
A95: Ergon Energy | B95: All | C95: All | D95: LED | E95: Labour | F95: =SUMIF($E$89:$E$94,$E95,F$89:F$94) -> 0 | G95: 0 | H95: 0 | I95: 0 | J95: 0
B96: All | C96: All | D96: LED | E96: Material | F96: =SUMIF($E$89:$E$94,$E96,F$89:F$94) -> 1024248.78 | G96: 1024248.78 | H96: 1024248.78 | I96: 1024248.78 | J96: 1024248.78
B97: All | C97: All | D97: LED | E97: Contractor | F97: 437485 | G97: 437485 | H97: 437485 | I97: 437485 | J97: 437485
A98: Ergon Energy | B98: All | C98: All | D98: LED | E98: All | F98: =SUM(F95:F97) -> 1461733.78 | G98: 1461733.78 | H98: 1461733.78 | I98: 1461733.78 | J98: 1461733.78
A101: Table 5 - ERG Pole Replacement Capex
A102: Real $2022-23 (direct costs) | F102: 100% LED deployment by 2030
F103: Forecast | G103: Forecast | H103: Forecast | I103: Forecast | J103: Forecast
A104: DNSP | B104: Rate | C104: Road type | D104: Light type | E104: Cost category | F104: 2025-26 | G104: 2026-27 | H104: 2027-28 | I104: 2028-29 | J104: 2029-30
A105: Ergon Energy | B105: 1 | C105: Major | D105: All | E105: Labour | F105: 0 | G105: 0 | H105: 0 | I105: 0 | J105: 0
B106: 1 | C106: Major | D106: All | E106: Material | F106: 0 | G106: 0 | H106: 0 | I106: 0 | J106: 0
B107: 1 | C107: Major | D107: All | E107: Contractor | F107: 0 | G107: 0 | H107: 0 | I107: 0 | J107: 0
A108: Ergon Energy | B108: 2 | C108: Minor | D108: All | E108: Labour | F108: 0 | G108: 0 | H108: 0 | I108: 0 | J108: 0
B109: 2 | C109: Minor | D109: All | E109: Material | F109: 0 | G109: 0 | H109: 0 | I109: 0 | J109: 0
B110: 2 | C110: Minor | D110: All | E110: Contractor | F110: 0 | G110: 0 | H110: 0 | I110: 0 | J110: 0
A111: Ergon Energy | B111: All | C111: All | D111: All | E111: Labour | F111: =SUMIF($E$105:$E$110,$E111,F$105:F$110) -> 0 | G111: 0 | H111: 0 | I111: 0 | J111: 0
B112: All | C112: All | D112: All | E112: Material | F112: =SUMIF($E$105:$E$110,$E112,F$105:F$110) -> 0 | G112: 0 | H112: 0 | I112: 0 | J112: 0
B113: All | C113: All | D113: All | E113: Contractor | F113: 0 | G113: 0 | H113: 0 | I113: 0 | J113: 0
B114: All | C114: All | D114: All | E114: All | F114: =SUM(F111:F113) -> 0 | G114: 0 | H114: 0 | I114: 0 | J114: 0
A116: Table 6 - ERG Nominal Public Lighting Capex (Direct costs)
A117: Real $2022-23 (direct costs) | F117: 100% LED deployment by 2030
F118: Forecast | G118: Forecast | H118: Forecast | I118: Forecast | J118: Forecast
A119: DNSP | B119: Rate | C119: Road | D119: Light type | E119: Cost category | F119: 2025-26 | G119: 2026-27 | H119: 2027-28 | I119: 2028-29 | J119: 2029-30
A120: Ergon Energy | B120: 1 | C120: Major | D120: All | E120: Labour | F120: =SUMIFS(F$5:F$114,$B$5:$B$114,$B120,$C$5:$C$114,$C120,$E$5:$E$114,$E120) -> 1327093.749 | G120: 1356584.721 | H120: 1386075.693 | I120: 1415566.665 | J120: 1445057.638
B121: 1 | C121: Major | D121: All | E121: Material | F121: 3345662.451 | G121: 3364322.861 | H121: 3382983.272 | I121: 3401643.682 | J121: 3420304.092
B122: 1 | C122: Major | D122: All | E122: Contractor | F122: 1235599.931 | G122: 1251138.263 | H122: 1266676.595 | I122: 1282214.926 | J122: 1297753.258
A123: Ergon Energy | B123: 2A | C123: Major | D123: All | E123: Labour | F123: 0 | G123: 0 | H123: 0 | I123: 0 | J123: 0
B124: 2A | C124: Major | D124: All | E124: Material | F124: 1196616 | G124: 1196616 | H124: 1196616 | I124: 1196616 | J124: 1196616
B125: 2A | C125: Major | D125: All | E125: Contractor | F125: 256125 | G125: 256125 | H125: 256125 | I125: 256125 | J125: 256125
A126: Ergon Energy | B126: 1 | C126: Minor | D126: All | E126: Labour | F126: 982441.4283 | G126: 996278.6315 | H126: 1010115.835 | I126: 1023953.038 | J126: 1037790.241
B127: 1 | C127: Minor | D127: All | E127: Material | F127: 798560.7577 | G127: 802091.7966 | H127: 805622.8354 | I127: 809153.8743 | J127: 812684.9131
B128: 1 | C128: Minor | D128: All | E128: Contractor | F128: 865258.0161 | G128: 872548.6219 | H128: 879839.2278 | I128: 887129.8336 | J128: 894420.4395
A129: Ergon Energy | B129: 2A | C129: Minor | D129: All | E129: Labour | F129: 0 | G129: 0 | H129: 0 | I129: 0 | J129: 0
B130: 2A | C130: Minor | D130: All | E130: Material | F130: 1541570.78 | G130: 1541570.78 | H130: 1541570.78 | I130: 1541570.78 | J130: 1541570.78
B131: 2A | C131: Minor | D131: All | E131: Contractor | F131: 765735 | G131: 765735 | H131: 765735 | I131: 765735 | J131: 765735
A132: Ergon Energy | B132: 1 | C132: All | D132: All | E132: Labour | F132: =SUMIFS(F$120:F$131,$B$120:$B$131,$B132,$E$120:$E$131,$E132) -> 2309535.177 | G132: 2352863.353 | H132: 2396191.528 | I132: 2439519.703 | J132: 2482847.879
B133: 1 | C133: All | D133: All | E133: Material | F133: =SUMIFS(F$120:F$131,$B$120:$B$131,$B133,$E$120:$E$131,$E133) -> 4144223.209 | G133: 4166414.658 | H133: 4188606.107 | I133: 4210797.556 | J133: 4232989.005
B134: 1 | C134: All | D134: All | E134: Contractor | F134: 2100857.947 | G134: 2123686.885 | H134: 2146515.822 | I134: 2169344.76 | J134: 2192173.698
B135: 2A | C135: All | D135: All | E135: Labour | F135: 0 | G135: 0 | H135: 0 | I135: 0 | J135: 0
B136: 2A | C136: All | D136: All | E136: Material | F136: 2738186.78 | G136: 2738186.78 | H136: 2738186.78 | I136: 2738186.78 | J136: 2738186.78
B137: 2A | C137: All | D137: All | E137: Contractor | F137: 1021860 | G137: 1021860 | H137: 1021860 | I137: 1021860 | J137: 1021860
A138: Ergon Energy | B138: All | C138: All | D138: All | E138: Labour | F138: =SUMIFS(F$5:F$114,$B$5:$B$114,$B138,$C$5:$C$114,$C138,$E$5:$E$114,$E138) -> 2309535.177 | G138: =SUMIFS(G$5:G$114,$B$5:$B$114,$B138,$C$5:$C$114,$C138,$E$5:$E$114,$E138) -> 2352863.353 | H138: 2396191.528 | I138: 2439519.703 | J138: 2482847.879
B139: All | C139: All | D139: All | E139: Material | F139: 6882409.989 | G139: 6904601.438 | H139: 6926792.887 | I139: 6948984.336 | J139: 6971175.785
B140: All | C140: All | D140: All | E140: Contractor | F140: 3122717.947 | G140: 3145546.885 | H140: 3168375.822 | I140: 3191204.76 | J140: 3214033.698
A141: Ergon Energy | B141: All | C141: All | D141: All | E141: All | F141: 12314663.11 | G141: 12403011.68 | H141: 12491360.24 | I141: 12579708.8 | J141: 12668057.36

Sheet ERG - Gross Capex
A1: 1 - This tables shows the RATE 1 and RATE 2A LED capex conversions funded by Ergon
B2: 100% LED deployment by 2030
B3: 2025-26 | C3: 2026-27 | D3: 2027-28 | E3: 2028-29 | F3: 2029-30
A4: Direct Costs ($Real 2024-25)
A5: Labour | B5: ='ERG - Forecast capex scenarios'!F138*'Cost Escalations'!$E$21*(1+'Cost Escalations'!B30) -> 2565823.263 | C5: ='ERG - Forecast capex scenarios'!G138*'Cost Escalations'!$E$21*(1+'Cost Escalations'!C30) -> 2638043.327 | D5: ='ERG - Forecast capex scenarios'!H138*'Cost Escalations'!$E$21*(1+'Cost Escalations'!D30) -> 2711093.834 | E5: ='ERG - Forecast capex scenarios'!I138*'Cost Escalations'!$E$21*(1+'Cost Escalations'!E30) -> 2789864.459 | F5: ='ERG - Forecast capex scenarios'!J138*'Cost Escalations'!$E$21*(1+'Cost Escalations'!F30) -> 2874454.004
A6: Contractors | B6: ='ERG - Forecast capex scenarios'!F140*'Cost Escalations'!$E$21*(1+'Cost Escalations'!B26) -> 3466669.806 | C6: ='ERG - Forecast capex scenarios'!G140*'Cost Escalations'!$E$21*(1+'Cost Escalations'!C26) -> 3516806.532 | D6: ='ERG - Forecast capex scenarios'!H140*'Cost Escalations'!$E$21*(1+'Cost Escalations'!D26) -> 3563938.114 | E6: ='ERG - Forecast capex scenarios'!I140*'Cost Escalations'!$E$21*(1+'Cost Escalations'!E26) -> 3622641.655 | F6: ='ERG - Forecast capex scenarios'!J140*'Cost Escalations'!$E$21*(1+'Cost Escalations'!F26) -> 3688326.236
A7: Materials | B7: ='ERG - Forecast capex scenarios'!F139*'Cost Escalations'!$E$21 -> 7561081.878 | C7: ='ERG - Forecast capex scenarios'!G139*'Cost Escalations'!$E$21 -> 7585461.618 | D7: ='ERG - Forecast capex scenarios'!H139*'Cost Escalations'!$E$21 -> 7609841.357 | E7: ='ERG - Forecast capex scenarios'!I139*'Cost Escalations'!$E$21 -> 7634221.097 | F7: ='ERG - Forecast capex scenarios'!J139*'Cost Escalations'!$E$21 -> 7658600.836
A8: Total | B8: =SUM(B5:B7) -> 13593574.95 | C8: 13740311.48 | D8: 13884873.31 | E8: 14046727.21 | F8: 14221381.08
A10: Overheads & Oncosts
A11: Fleet oncost | B11: =B5*Overheads!$D$15 -> 543031.7203 | C11: =C5*Overheads!$D$15 -> 558316.3995 | D11: =D5*Overheads!$D$15 -> 573776.834 | E11: =E5*Overheads!$D$15 -> 590447.8762 | F11: =F5*Overheads!$D$15 -> 608350.4368
A12: Material oncosts | B12: =B7*Overheads!$D$9 -> 601769.1238 | C12: =C7*Overheads!$D$9 -> 603709.4512 | D12: =D7*Overheads!$D$9 -> 605649.7786 | E12: =E7*Overheads!$D$9 -> 607590.106 | F12: =F7*Overheads!$D$9 -> 609530.4334
A13: Network overheads | B13: =(B8+B11+B12)*Overheads!$D$19 -> 1701449.863 | C13: =(C8+C11+C12)*Overheads!$D$19 -> 1720378.159 | D13: =(D8+D11+D12)*Overheads!$D$19 -> 1739075.689 | E13: =(E8+E11+E12)*Overheads!$D$19 -> 1759909.234 | F13: =(F8+F11+F12)*Overheads!$D$19 -> 1782362.623
A14: Non-network overheads | B14: =B5*Overheads!$D$20 -> 908353.9555 | C14: =C5*Overheads!$D$20 -> 933921.3363 | D14: =D5*Overheads!$D$20 -> 959782.7112 | E14: =E5*Overheads!$D$20 -> 987669.1247 | F14: =F5*Overheads!$D$20 -> 1017615.555
A15: Non-network depreciation | B15: =B5*Overheads!$D$25 -> 353620.2631 | C15: =C5*Overheads!$D$25 -> 363573.5901 | D15: =D5*Overheads!$D$25 -> 373641.3683 | E15: =E5*Overheads!$D$25 -> 384497.4898 | F15: =F5*Overheads!$D$25 -> 396155.5715
A16: Corporate overheads | B16: =0 -> 0 | C16: =0 -> 0 | D16: =0 -> 0 | E16: =0 -> 0 | F16: =0 -> 0 | H16: No allocation of corporate overheads to capex
A17: Market | B17: =0 -> 0 | C17: =0 -> 0 | D17: =0 -> 0 | E17: =0 -> 0 | F17: =0 -> 0 | H17: No market allocation to capex
A18: Customer ops | B18: =0 -> 0 | C18: =0 -> 0 | D18: =0 -> 0 | E18: =0 -> 0 | F18: =0 -> 0 | H18: No customer operation allocation to capex
A19: Total | B19: =SUM(B11:B18) -> 4108224.926 | C19: 4179898.936 | D19: 4251926.381 | E19: 4330113.831 | F19: 4414014.62
A21: Total Expenditure (incl oncosts and overheads) | B21: =B8+B19 -> 17701799.87 | C21: =C8+C19 -> 17920210.41 | D21: 18136799.69 | E21: 18376841.04 | F21: 18635395.7
B23: 2025-26 | C23: 2026-27 | D23: 2027-28 | E23: 2028-29 | F23: 2029-30
A24: Allocation of total Expenditure (Gross)
A25: LED | B25: =('ERG - Forecast capex scenarios'!F$141-'ERG - Forecast capex scenarios'!F$53)/'ERG - Forecast capex scenarios'!F$141 -> 1 | C25: =('ERG - Forecast capex scenarios'!G$141-'ERG - Forecast capex scenarios'!G$53)/'ERG - Forecast capex scenarios'!G$141 -> 1 | D25: =('ERG - Forecast capex scenarios'!H$141-'ERG - Forecast capex scenarios'!H$53)/'ERG - Forecast capex scenarios'!H$141 -> 1 | E25: =('ERG - Forecast capex scenarios'!I$141-'ERG - Forecast capex scenarios'!I$53)/'ERG - Forecast capex scenarios'!I$141 -> 1 | F25: =('ERG - Forecast capex scenarios'!J$141-'ERG - Forecast capex scenarios'!J$53)/'ERG - Forecast capex scenarios'!J$141 -> 1
A26: CON | B26: =1-B25 -> 0 | C26: =1-C25 -> 0 | D26: 0 | E26: 0 | F26: 0
A28: LED | B28: =B25*B21 -> 17701799.87 | C28: =C25*C21 -> 17920210.41 | D28: 18136799.69 | E28: 18376841.04 | F28: 18635395.7
A29: CON | B29: =B26*B24 -> 0 | C29: =C26*C24 -> 0 | D29: =D26*D24 -> 0 | E29: =E26*E24 -> 0 | F29: =F26*F24 -> 0
A31: Immediate Expensing
A32: LED | B32: =B25*B19 -> 4108224.926 | C32: =C25*C19 -> 4179898.936 | D32: =D25*D19 -> 4251926.381 | E32: =E25*E19 -> 4330113.831 | F32: =F25*F19 -> 4414014.62
A33: CON | B33: =B26*B19 -> 0 | C33: =C26*C19 -> 0 | D33: =D26*D19 -> 0 | E33: =E26*E19 -> 0 | F33: =F26*F19 -> 0
A36: 2 - This table presents RATE 1 LED conversions are funded by customers
B37: 100% LED deployment by 2030
B38: 2025-26 | C38: 2026-27 | D38: 2027-28 | E38: 2028-29 | F38: 2029-30
A39: Direct Costs ($Real 2024-25)
A40: Labour | B40: ='ERG - Forecast capex scenarios'!F132*'Cost Escalations'!$E$21*(1+'Cost Escalations'!B30) -> 2565823.263 | C40: ='ERG - Forecast capex scenarios'!G132*'Cost Escalations'!$E$21*(1+'Cost Escalations'!C30) -> 2638043.327 | D40: ='ERG - Forecast capex scenarios'!H132*'Cost Escalations'!$E$21*(1+'Cost Escalations'!D30) -> 2711093.834 | E40: ='ERG - Forecast capex scenarios'!I132*'Cost Escalations'!$E$21*(1+'Cost Escalations'!E30) -> 2789864.459 | F40: ='ERG - Forecast capex scenarios'!J132*'Cost Escalations'!$E$21*(1+'Cost Escalations'!F30) -> 2874454.004
A41: Contractors | B41: ='ERG - Forecast capex scenarios'!F134*'Cost Escalations'!$E$21*(1+'Cost Escalations'!B26) -> 2332257.007 | C41: ='ERG - Forecast capex scenarios'!G134*'Cost Escalations'!$E$21*(1+'Cost Escalations'!C26) -> 2374339.402 | D41: ='ERG - Forecast capex scenarios'!H134*'Cost Escalations'!$E$21*(1+'Cost Escalations'!D26) -> 2414501.935 | E41: ='ERG - Forecast capex scenarios'!I134*'Cost Escalations'!$E$21*(1+'Cost Escalations'!E26) -> 2462630.662 | F41: ='ERG - Forecast capex scenarios'!J134*'Cost Escalations'!$E$21*(1+'Cost Escalations'!F26) -> 2515671.123 | G41: ='ERG - Forecast capex scenarios'!#REF!*'Cost Escalations'!$E$21*(1+'Cost Escalations'!G26) -> 
A42: Materials | B42: ='ERG - Forecast capex scenarios'!F133*'Cost Escalations'!$E$21 -> 4552883.518 | C42: ='ERG - Forecast capex scenarios'!G133*'Cost Escalations'!$E$21 -> 4577263.258 | D42: ='ERG - Forecast capex scenarios'!H133*'Cost Escalations'!$E$21 -> 4601642.997 | E42: ='ERG - Forecast capex scenarios'!I133*'Cost Escalations'!$E$21 -> 4626022.737 | F42: ='ERG - Forecast capex scenarios'!J133*'Cost Escalations'!$E$21 -> 4650402.476
A43: Total | B43: =SUM(B40:B42) -> 9450963.788 | C43: =SUM(C40:C42) -> 9589645.986 | D43: 9727238.766 | E43: 9878517.858 | F43: 10040527.6
A45: Overheads & Oncosts
A46: Fleet oncost | B46: =B40*Overheads!$D$15 -> 543031.7203 | C46: =C40*Overheads!$D$15 -> 558316.3995 | D46: =D40*Overheads!$D$15 -> 573776.834 | E46: =E40*Overheads!$D$15 -> 590447.8762 | F46: =F40*Overheads!$D$15 -> 608350.4368
A47: Material oncosts | B47: =B42*Overheads!$D$9 -> 362353.5322 | C47: =C42*Overheads!$D$9 -> 364293.8596 | D47: =D42*Overheads!$D$9 -> 366234.187 | E47: =E42*Overheads!$D$9 -> 368174.5144 | F47: =F42*Overheads!$D$9 -> 370114.8418
A48: Network overheads | B48: =(B43+B46+B47)*Overheads!$D$19 -> 1195573.305 | C48: =(C43+C46+C47)*Overheads!$D$19 -> 1213571.781 | D48: =(D43+D46+D47)*Overheads!$D$19 -> 1231464.779 | E48: =(E43+E46+E47)*Overheads!$D$19 -> 1251077.531 | F48: =(F43+F46+F47)*Overheads!$D$19 -> 1272071.238
A49: Non-network overheads | B49: =B40*Overheads!$D$20 -> 908353.9555 | C49: =C40*Overheads!$D$20 -> 933921.3363 | D49: =D40*Overheads!$D$20 -> 959782.7112 | E49: =E40*Overheads!$D$20 -> 987669.1247 | F49: =F40*Overheads!$D$20 -> 1017615.555
A50: Non-network depreciation | B50: =B40*Overheads!$D$25 -> 353620.2631 | C50: =C40*Overheads!$D$25 -> 363573.5901 | D50: =D40*Overheads!$D$25 -> 373641.3683 | E50: =E40*Overheads!$D$25 -> 384497.4898 | F50: =F40*Overheads!$D$25 -> 396155.5715
A51: Corporate overheads | B51: 0 | C51: 0 | D51: 0 | E51: 0 | F51: 0 | H51: No allocation of corporate overheads to capex
A52: Market | B52: 0 | C52: 0 | D52: 0 | E52: 0 | F52: 0 | H52: No market allocation to capex
A53: Customer ops | B53: 0 | C53: 0 | D53: 0 | E53: 0 | F53: 0 | H53: No customer operation allocation to capex
A54: Total | B54: =SUM(B46:B53) -> 3362932.776 | C54: =SUM(C46:C53) -> 3433676.966 | D54: =SUM(D46:D53) -> 3504899.88 | E54: =SUM(E46:E53) -> 3581866.536 | F54: =SUM(F46:F53) -> 3664307.643
A56: Total Expenditure | B56: =B43+B54 -> 12813896.56 | C56: 13023322.95 | D56: 13232138.65 | E56: 13460384.39 | F56: 13704835.25
A58: Allocation of total Expenditure (Gross)
A59: LED | B59: =('ERG - Forecast capex scenarios'!F$141-'ERG - Forecast capex scenarios'!F$53)/'ERG - Forecast capex scenarios'!F$141 -> 1 | C59: =('ERG - Forecast capex scenarios'!G$141-'ERG - Forecast capex scenarios'!G$53)/'ERG - Forecast capex scenarios'!G$141 -> 1 | D59: =('ERG - Forecast capex scenarios'!H$141-'ERG - Forecast capex scenarios'!H$53)/'ERG - Forecast capex scenarios'!H$141 -> 1 | E59: =('ERG - Forecast capex scenarios'!I$141-'ERG - Forecast capex scenarios'!I$53)/'ERG - Forecast capex scenarios'!I$141 -> 1 | F59: =('ERG - Forecast capex scenarios'!J$141-'ERG - Forecast capex scenarios'!J$53)/'ERG - Forecast capex scenarios'!J$141 -> 1
A60: CON | B60: =1-B59 -> 0 | C60: =1-C59 -> 0 | D60: 0 | E60: 0 | F60: 0
A62: LED | B62: =B59*B56 -> 12813896.56 | C62: =C59*C56 -> 13023322.95 | D62: =D59*D56 -> 13232138.65 | E62: =E59*E56 -> 13460384.39 | F62: =F59*F56 -> 13704835.25
A63: CON | B63: =B60*B56 -> 0 | C63: 0 | D63: 0 | E63: 0 | F63: 0
A66: 3 - This table presents the RATE 2A capex
B67: 100% LED deployment by 2030
B68: 2025-26 | C68: 2026-27 | D68: 2027-28 | E68: 2028-29 | F68: 2029-30
A69: Direct Costs ($Real 2024-25)
A70: Labour | B70: ='ERG - Forecast capex scenarios'!F135*'Cost Escalations'!$E$21*(1+'Cost Escalations'!B30) -> 0 | C70: ='ERG - Forecast capex scenarios'!G135*'Cost Escalations'!$E$21*(1+'Cost Escalations'!C30) -> 0 | D70: ='ERG - Forecast capex scenarios'!H135*'Cost Escalations'!$E$21*(1+'Cost Escalations'!D30) -> 0 | E70: ='ERG - Forecast capex scenarios'!I135*'Cost Escalations'!$E$21*(1+'Cost Escalations'!E30) -> 0 | F70: ='ERG - Forecast capex scenarios'!J135*'Cost Escalations'!$E$21*(1+'Cost Escalations'!F30) -> 0
A71: Contractors | B71: ='ERG - Forecast capex scenarios'!F137*'Cost Escalations'!$E$21*(1+'Cost Escalations'!B26) -> 1134412.8 | C71: ='ERG - Forecast capex scenarios'!G137*'Cost Escalations'!$E$21*(1+'Cost Escalations'!C26) -> 1142467.13 | D71: ='ERG - Forecast capex scenarios'!H137*'Cost Escalations'!$E$21*(1+'Cost Escalations'!D26) -> 1149436.18 | E71: ='ERG - Forecast capex scenarios'!I137*'Cost Escalations'!$E$21*(1+'Cost Escalations'!E26) -> 1160010.993 | F71: ='ERG - Forecast capex scenarios'!J137*'Cost Escalations'!$E$21*(1+'Cost Escalations'!F26) -> 1172655.113
A72: Materials | B72: ='ERG - Forecast capex scenarios'!F136*'Cost Escalations'!$E$21 -> 3008198.36 | C72: ='ERG - Forecast capex scenarios'!G136*'Cost Escalations'!$E$21 -> 3008198.36 | D72: ='ERG - Forecast capex scenarios'!H136*'Cost Escalations'!$E$21 -> 3008198.36 | E72: ='ERG - Forecast capex scenarios'!I136*'Cost Escalations'!$E$21 -> 3008198.36 | F72: ='ERG - Forecast capex scenarios'!J136*'Cost Escalations'!$E$21 -> 3008198.36 | G72: ='ERG - Forecast capex scenarios'!K136*'Cost Escalations'!$E$21 -> 0
A73: Total | B73: =SUM(B70:B72) -> 4142611.159 | C73: 4150665.49 | D73: 4157634.54 | E73: 4168209.353 | F73: 4180853.473
A75: Overheads & Oncosts
A76: Fleet oncost | B76: =B70*Overheads!$D$15 -> 0 | C76: =C70*Overheads!$D$15 -> 0 | D76: =D70*Overheads!$D$15 -> 0 | E76: =E70*Overheads!$D$15 -> 0 | F76: =F70*Overheads!$D$15 -> 0
A77: Material oncosts | B77: =B72*Overheads!$D$9 -> 239415.5916 | C77: =C72*Overheads!$D$9 -> 239415.5916 | D77: =D72*Overheads!$D$9 -> 239415.5916 | E77: =E72*Overheads!$D$9 -> 239415.5916 | F77: =F72*Overheads!$D$9 -> 239415.5916
A78: Network overheads | B78: =(B73+B76+B77)*Overheads!$D$19 -> 505876.5581 | C78: =(C73+C76+C77)*Overheads!$D$19 -> 506806.3783 | D78: =(D73+D76+D77)*Overheads!$D$19 -> 507610.9099 | E78: =(E73+E76+E77)*Overheads!$D$19 -> 508831.7034 | F78: =(F73+F76+F77)*Overheads!$D$19 -> 510291.385
A79: Non-network overheads | B79: =B70*Overheads!$D$20 -> 0 | C79: =C70*Overheads!$D$20 -> 0 | D79: =D70*Overheads!$D$20 -> 0 | E79: =E70*Overheads!$D$20 -> 0 | F79: =F70*Overheads!$D$20 -> 0
A80: Non-network depreciation | B80: =B70*Overheads!$D$25 -> 0 | C80: =C70*Overheads!$D$25 -> 0 | D80: =D70*Overheads!$D$25 -> 0 | E80: =E70*Overheads!$D$25 -> 0 | F80: =F70*Overheads!$D$25 -> 0
A81: Corporate overheads | B81: 0 | C81: 0 | D81: 0 | E81: 0 | F81: 0 | H81: No allocation of corporate overheads to capex
A82: Market | B82: 0 | C82: 0 | D82: 0 | E82: 0 | F82: 0 | H82: No market allocation to capex
A83: Customer ops | B83: 0 | C83: 0 | D83: 0 | E83: 0 | F83: 0 | H83: No customer operation allocation to capex
A84: Total | B84: =SUM(B76:B83) -> 745292.1497 | C84: =SUM(C76:C83) -> 746221.9699 | D84: =SUM(D76:D83) -> 747026.5015 | E84: =SUM(E76:E83) -> 748247.295 | F84: =SUM(F76:F83) -> 749706.9766
A86: Total Expenditure | B86: =B73+B84 -> 4887903.309 | C86: 4896887.46 | D86: 4904661.041 | E86: 4916456.648 | F86: =F73+F84 -> 4930560.449
A88: Allocation of total Expenditure (Gross)
A89: LED | B89: =('ERG - Forecast capex scenarios'!F$141-'ERG - Forecast capex scenarios'!F$53)/'ERG - Forecast capex scenarios'!F$141 -> 1 | C89: =('ERG - Forecast capex scenarios'!G$141-'ERG - Forecast capex scenarios'!G$53)/'ERG - Forecast capex scenarios'!G$141 -> 1 | D89: =('ERG - Forecast capex scenarios'!H$141-'ERG - Forecast capex scenarios'!H$53)/'ERG - Forecast capex scenarios'!H$141 -> 1 | E89: =('ERG - Forecast capex scenarios'!I$141-'ERG - Forecast capex scenarios'!I$53)/'ERG - Forecast capex scenarios'!I$141 -> 1 | F89: =('ERG - Forecast capex scenarios'!J$141-'ERG - Forecast capex scenarios'!J$53)/'ERG - Forecast capex scenarios'!J$141 -> 1
A90: CON | B90: =1-B89 -> 0 | C90: =1-C89 -> 0 | D90: 0 | E90: 0 | F90: 0
A92: LED | B92: =B89*B86 -> 4887903.309 | C92: 4896887.46 | D92: 4904661.041 | E92: 4916456.648 | F92: 4930560.449
A93: CON | B93: =B90*B86 -> 0 | C93: 0 | D93: 0 | E93: 0 | F93: 0
A95: Reconciliation | B95: =B56+B86 -> 17701799.87 | C95: =C56+C86 -> 17920210.41 | D95: =D56+D86 -> 18136799.69 | E95: =E56+E86 -> 18376841.04 | F95: =F56+F86 -> 18635395.7
B96: =B21-B95 -> 0 | C96: =C21-C95 -> 0 | D96: =D21-D95 -> 0 | E96: =E21-E95 -> 0 | F96: =F21-F95 -> 0
B98: 15898742.47 | C98: 16023159.33 | D98: 16144687.73 | E98: 16284614.25 | F98: 16437667.84

Sheet >>Forecast opex

Sheet ERG - Opex BST
A1: Ergon Energy - Factors for the Base Step Trend Approach used to derive forecast opex
A3: Table 1: Forecast Volume of LED and CONV Lights
A4: Volumes | B4: 2021-22 | C4: 2022-23 | D4: 2024-25 | E4: 2025-26 | F4: 2026-27 | G4: 2027-28 | H4: 2028-29 | I4: 2029-30
A5: Conventional | E5: ='ERG - Yearly volume scenarios'!K83 -> 46985 | F5: ='ERG - Yearly volume scenarios'!L83 -> 35241 | G5: ='ERG - Yearly volume scenarios'!M83 -> 23493 | H5: ='ERG - Yearly volume scenarios'!N83 -> 11747 | I5: ='ERG - Yearly volume scenarios'!O83 -> 0
A6: LED | E6: ='ERG - Yearly volume scenarios'!K84+'ERG - Yearly volume scenarios'!K106 -> 111068 | F6: ='ERG - Yearly volume scenarios'!L84+'ERG - Yearly volume scenarios'!L106 -> 123225 | G6: ='ERG - Yearly volume scenarios'!M84+'ERG - Yearly volume scenarios'!M106 -> 135392 | H6: ='ERG - Yearly volume scenarios'!N84+'ERG - Yearly volume scenarios'!N106 -> 147564 | I6: ='ERG - Yearly volume scenarios'!O84+'ERG - Yearly volume scenarios'!O106 -> 159744
A7: Total | E7: =SUM(E5:E6) -> 158053 | F7: =SUM(F5:F6) -> 158466 | G7: =SUM(G5:G6) -> 158885 | H7: =SUM(H5:H6) -> 159311 | I7: =SUM(I5:I6) -> 159744
A9: Table 2: Base Step Trend approach
A10: 2a: Forecast Price Change
A11: Rate | B11: 2021-22 | C11: 2022-23 | D11: 2024-25 | E11: 2025-26 | F11: 2026-27 | G11: 2027-28 | H11: 2028-29 | I11: 2029-30
A12: Labour | E12: ='Cost Escalations'!B29 -> 0.01125051557 | F12: ='Cost Escalations'!C29 -> 0.009213524394 | G12: ='Cost Escalations'!D29 -> 0.009108355629 | H12: ='Cost Escalations'!E29 -> 0.0107779358 | I12: ='Cost Escalations'!F29 -> 0.01234018808
A13: Contractor | E13: ='Cost Escalations'!B25 -> 0.0105 | F13: ='Cost Escalations'!C25 -> 0.0071 | G13: ='Cost Escalations'!D25 -> 0.0061 | H13: ='Cost Escalations'!E25 -> 0.0092 | I13: ='Cost Escalations'!F25 -> 0.0109
A14: Materials/other | E14: 0 | F14: 0 | G14: 0 | H14: 0 | I14: 0
A16: 2b: Weights
A17: Rate | B17: 2021-22 | C17: 2022-23 | D17: 2024-25 | E17: 2025-26 | F17: 2026-27 | G17: 2027-28 | H17: 2028-29 | I17: 2029-30
A18: Labour | E18: =SUM('ERG - Forecast opex'!C4,'ERG - Forecast opex'!C9)/(SUM('ERG - Forecast opex'!C3:C11)-'ERG - Forecast opex'!C16) -> 0.1777944569 | F18: =E18 -> 0.1777944569 | G18: 0.1777944569 | H18: 0.1777944569 | I18: 0.1777944569
A19: Contractor | E19: =SUM('ERG - Forecast opex'!C5,'ERG - Forecast opex'!C10)/(SUM('ERG - Forecast opex'!C3:C11)-'ERG - Forecast opex'!C16) -> 0.6480013548 | F19: 0.6480013548 | G19: 0.6480013548 | H19: 0.6480013548 | I19: 0.6480013548
A20: Materials/other | E20: =(SUM('ERG - Forecast opex'!C6,'ERG - Forecast opex'!C7,'ERG - Forecast opex'!C11)-'ERG - Forecast opex'!C16)/(SUM('ERG - Forecast opex'!C3:C11)-'ERG - Forecast opex'!C16) -> 0.1742041883 | F20: 0.1742041883 | G20: 0.1742041883 | H20: 0.1742041883 | I20: 0.1742041883
A22: 2c: Price Change
A23: Rate | B23: 2021-22 | C23: 2022-23 | D23: 2024-25 | E23: 2025-26 | F23: 2026-27 | G23: 2027-28 | H23: 2028-29 | I23: 2029-30
A24: Rate | E24: =SUMPRODUCT(E12:E14,E18:E20) -> 0.00880429353 | F24: =SUMPRODUCT(F12:F14,F18:F20) -> 0.006238923184 | G24: =SUMPRODUCT(G12:G14,G18:G20) -> 0.005572223406 | H24: =SUMPRODUCT(H12:H14,H18:H20) -> 0.007877869706 | I24: =SUMPRODUCT(I12:I14,I18:I20) -> 0.009257231805
A26: 2d: Forecast Output Growth
A27: Rate | B27: 2021-22 | C27: 2022-23 | D27: 2024-25 | E27: 2025-26 | F27: 2026-27 | G27: 2027-28 | H27: 2028-29 | I27: 2029-30
A28: Light Population | D28: ='ERG - Yearly volume scenarios'!J85+'ERG - Yearly volume scenarios'!J106 -> 157986.6 | E28: ='ERG - Yearly volume scenarios'!K85+'ERG - Yearly volume scenarios'!K106 -> 158053 | F28: ='ERG - Yearly volume scenarios'!L85+'ERG - Yearly volume scenarios'!L106 -> 158466 | G28: ='ERG - Yearly volume scenarios'!M85+'ERG - Yearly volume scenarios'!M106 -> 158885 | H28: ='ERG - Yearly volume scenarios'!N85+'ERG - Yearly volume scenarios'!N106 -> 159311 | I28: ='ERG - Yearly volume scenarios'!O85+'ERG - Yearly volume scenarios'!O106 -> 159744
A29: Growth Rate | E29: =LN(E28)-LN(D28) -> 0.0004202005127 | F29: =LN(F28)-LN(E28) -> 0.002609639449 | G29: =LN(G28)-LN(F28) -> 0.002640610828 | H29: =LN(H28)-LN(G28) -> 0.002677596541 | I29: =LN(I28)-LN(H28) -> 0.002714267232
A30: Factor | D30: =1-(SUM('ERG - Forecast opex'!C4:C7)/SUM('ERG - Forecast opex'!C3:C12)) -> 0.2742396476 | E30: =SUMPRODUCT($D$30,E29) -> 0.0001152356405 | F30: =SUMPRODUCT($D$30,F29) -> 0.0007156666028 | G30: =SUMPRODUCT($D$30,G29) -> 0.000724160183 | H30: =SUMPRODUCT($D$30,H29) -> 0.0007343031319 | I30: =SUMPRODUCT($D$30,I29) -> 0.0007443596891
A32: 2e: Productivity Factor
A33: Rate | B33: 2021-22 | C33: 2022-23 | D33: 2024-25 | E33: 2025-26 | F33: 2026-27 | G33: 2027-28 | H33: 2028-29 | I33: 2029-30
A34: Rate | D34: 0.04 | E34: =D34 -> 0.04 | F34: =E34 -> 0.04 | G34: 0.04 | H34: 0.04 | I34: 0.04
A36: 2f: Forecast Rate of Change
A37: Rate | B37: 2021-22 | C37: 2022-23 | D37: 2024-25 | E37: 2025-26 | F37: 2026-27 | G37: 2027-28 | H37: 2028-29 | I37: 2029-30
A38: Rate of Change - year on year | E38: =(1+E24)*(1+E30)*(1-E34)-1 -> -0.03143627801 | F38: =(1+F24)*(1+F30)*(1-F34)-1 -> -0.03331930741 | G38: =(1+G24)*(1+G30)*(1-G34)-1 -> -0.03395159798 | H38: =(1+H24)*(1+H30)*(1-H34)-1 -> -0.03172676072 | I38: =(1+I24)*(1+I30)*(1-I34)-1 -> -0.03039185708
A39: Rate of Change - Cummulative | E39: =PRODUCT(1+$D38:E38)-1 -> -0.03143627801 | F39: =PRODUCT(1+$D38:F38)-1 -> -0.06370815041 | G39: =PRODUCT(1+$D38:G38)-1 -> -0.09549675488 | H39: =PRODUCT(1+$D38:H38)-1 -> -0.1241937129 | I39: =PRODUCT(1+$D38:I38)-1 -> -0.1508110924

Sheet ERG - Forecast opex
A1: Table 1 - Opex Direct Costs | B1: Actual
A2: Opex Direct Costs | B2: 2022-23 | C2: 2024-25 | D2: 2025-26 | E2: 2026-27 | F2: 2027-28 | G2: 2028-29 | H2: 2029-30
A3: Maintenance
A4: Labour | B4: 68437.17 | C4: =B4*'Cost Escalations'!$E$21 -> 75185.73388
A5: Contractor | B5: 4774784.03 | C5: =B5*'Cost Escalations'!$E$21 -> 5245623.707
A6: Materials | B6: 303078.3 | C6: =B6*'Cost Escalations'!$E$21 -> 332964.7384
A7: Other | B7: 458593.18 | C7: =B7*'Cost Escalations'!$E$21 -> 503814.8829
A8: Damage/Emergency
A9: Labour | B9: 1332665.06 | C9: =B9*'Cost Escalations'!$E$21 -> 1464078.666
A10: Contractor | B10: 331765.18 | C10: =B10*'Cost Escalations'!$E$21 -> 364480.421
A11: Materials | B11: 401137.78 | C11: =B11*'Cost Escalations'!$E$21 -> 440693.8273
A12: Other | B12: 52326.39 | C12: =B12*'Cost Escalations'!$E$21 -> 57486.27586
A13: Total direct opex | B13: =SUM(B4:B12) -> 7722787.09 | C13: =SUM(C4:C12) -> 8484328.253
A15: Adjustments (material costs)
A16: LED Lamps | B16: -210000 | C16: =B16*'Cost Escalations'!$E$21 -> -230708.0219
A17: Overheads & Oncosts
A18: Base Opex | C18: =C13+C16+C17 -> 8253620.231
A19: Notes:
A20: Material costs removed to reflect the fact that, upon failure, the LED luminaire is replaced and becomes capex
A22: Overheads & Oncosts
A23: Labour oncost | C23: 0
A24: Fleet oncost | C24: =(C4+C9)*Overheads!D15 -> 325770.4484
A25: Material oncosts | C25: =(C6+C11+C16)*Overheads!D9 -> 43212.18554
A26: Network overheads | C26: =(C18+C23+C24+C25)*Overheads!D19 -> 995423.5577
A27: Non-network overheads | C27: =(C4+C9)*Overheads!D20 -> 544931.1051
A28: Non-network depreciation | C28: =(C4+C9)*Overheads!D25 -> 212140.5203
A29: Corporate overheads | C29: =C18*Overheads!D26 -> 443948.4618
A30: Market | C30: =C18*Overheads!D27 -> 23362.27664
A31: Customer ops | C31: =C18*Overheads!D28 -> 235923.8552
A32: Total | C32: =SUM(C23:C31) -> 2824712.411
A33: Base Opex (Gross) | C33: =C18+C32 -> 11078332.64
A35: Table 2 - Forecast Opex
A36: Forecast opex | B36: 2022-23 | C36: 2024-25 | D36: 2025-26 | E36: 2026-27 | F36: 2027-28 | G36: 2028-29 | H36: 2029-30
A37: Conventional | D37: =D39/('ERG - Opex BST'!E5+'ERG - Opex BST'!E6/0.55)*'ERG - Opex BST'!E5 -> 2025303.638 | E37: =E39/('ERG - Opex BST'!F5+'ERG - Opex BST'!F6/0.55)*'ERG - Opex BST'!F5 -> 1409788.743 | F37: =F39/('ERG - Opex BST'!G5+'ERG - Opex BST'!G6/0.55)*'ERG - Opex BST'!G5 -> 872983.5092 | G37: =G39/('ERG - Opex BST'!H5+'ERG - Opex BST'!H6/0.55)*'ERG - Opex BST'!H5 -> 406987.7369 | H37: =H39/('ERG - Opex BST'!I5+'ERG - Opex BST'!I6/0.55)*'ERG - Opex BST'!I5 -> 0
A38: LED | D38: =D39-D37 -> 8704767.459 | E38: =E39-E37 -> 8962763.817 | F38: 9147404.316 | G38: 9295485.641 | H38: 9407597.194
A39: Total | C39: =C33 -> 11078332.64 | D39: =C39*(1+'ERG - Opex BST'!E39) -> 10730071.1 | E39: =$C$39*(1+'ERG - Opex BST'!F39) -> 10372552.56 | F39: =$C$39*(1+'ERG - Opex BST'!G39) -> 10020387.82 | G39: =$C$39*(1+'ERG - Opex BST'!H39) -> 9702473.378 | H39: =$C$39*(1+'ERG - Opex BST'!I39) -> 9407597.194
